Workbook

Sheet Traffic Count
A1: Start Date | B1: 2009-06-02 | AK1: Do Not Modify | AM1: Do Not Modify
A2: Start Time | B2: 06:00:00 | X2: FALSE | AF2: TRUE | AK2: 3 | AM2: 2
A3: Site Code | B3: 18271 | T3: #1 | X3: #2 | AB3: #3 | AF3: #4 | AM3: Number of Through Lanes | AS3: Number of Through lanes
A4: Street Name | B4: TRACTOR SUPPLY ENTRANCE--Eastbound | F4: SR 159--Southbound | J4: ALDI ENTRANCE--Westbound | N4: SR 159--Northbound | T4: =B4 -> TRACTOR SUPPLY ENTRANCE--Eastbound | X4: =F4 -> SR 159--Southbound | AB4: =J4 -> ALDI ENTRANCE--Westbound | AF4: =N4 -> SR 159--Northbound | AM4: 2 | AS4: 2
A5: Start Time | B5: Right | C5: Thru | D5: Left | E5: Peds | F5: Right | G5: Thru | H5: Left | I5: Peds | J5: Right | K5: Thru | L5: Left | M5: Peds | N5: Right | O5: Thru | P5: Left | Q5: Peds | T5: Right | U5: Thru | V5: Left | W5: Peds | X5: Right | Y5: Thru | Z5: Left | AA5: Peds | AB5: Right | AC5: Thru | AD5: Left | AE5: Peds | AF5: Right | AG5: Thru | AH5: Left | AI5: Peds | AK5: #1 Minor Leg Lane Configurations and Right Turn Reductions | AL5: - | AM5: #2 Mainline Congestion Factors for Limiting Right Turn Reductions | AN5: = | AO5: Minor Street Right Turn Reduction | AQ5: #3 Minor Leg Lane Configurations and Right Turn Reductions | AR5: - | AS5: #4 Mainline Congestion Factors for Limiting Right Turn Reductions | AT5: = | AU5: Minor Street Right Turn Reduction
A6: 06:00:00 | B6: 0 | C6: 0 | D6: 0 | E6: 0 | F6: 0 | G6: 42 | H6: 0 | I6: 0 | J6: 0 | K6: 0 | L6: 0 | M6: 0 | N6: 0 | O6: 101 | P6: 0 | Q6: 0
A7: 06:00:00 | B7: 0 | C7: 0 | D7: 0 | E7: 0 | F7: 0 | G7: 9 | H7: 0 | I7: 0 | J7: 0 | K7: 0 | L7: 0 | M7: 0 | N7: 0 | O7: 6 | P7: 0 | Q7: 0
A8: 06:00:00 | B8: 0 | C8: 0 | D8: 0 | E8: 0 | F8: 0 | G8: 0 | H8: 0 | I8: 0 | J8: 0 | K8: 0 | L8: 0 | M8: 0 | N8: 0 | O8: 0 | P8: 0 | Q8: 0 | S8: 06:00:00 | T8: =SUM(B6:B8) -> 0 | U8: 0 | V8: 0 | W8: 0 | X8: 0 | Y8: 51 | Z8: 0 | AA8: 0 | AB8: 0 | AC8: 0 | AD8: 0 | AE8: 0 | AF8: 0 | AG8: 107 | AH8: 0 | AI8: 0
A9: 06:15:00 | B9: 0 | C9: 0 | D9: 0 | E9: 0 | F9: 0 | G9: 67 | H9: 0 | I9: 0 | J9: 0 | K9: 0 | L9: 0 | M9: 0 | N9: 0 | O9: 131 | P9: 0 | Q9: 0
A10: 06:15:00 | B10: 0 | C10: 0 | D10: 0 | E10: 0 | F10: 0 | G10: 2 | H10: 0 | I10: 0 | J10: 0 | K10: 0 | L10: 0 | M10: 0 | N10: 0 | O10: 8 | P10: 0 | Q10: 0
A11: 06:15:00 | B11: 0 | C11: 0 | D11: 0 | E11: 0 | F11: 0 | G11: 0 | H11: 0 | I11: 0 | J11: 0 | K11: 0 | L11: 0 | M11: 0 | N11: 0 | O11: 0 | P11: 0 | Q11: 0 | S11: 06:15:00 | T11: =SUM(B9:B11) -> 0 | U11: 0 | V11: 0 | W11: 0 | X11: 0 | Y11: 69 | Z11: 0 | AA11: 0 | AB11: 0 | AC11: 0 | AD11: 0 | AE11: 0 | AF11: 0 | AG11: 139 | AH11: 0 | AI11: 0
A12: 06:30:00 | B12: 0 | C12: 0 | D12: 0 | E12: 0 | F12: 0 | G12: 61 | H12: 0 | I12: 0 | J12: 0 | K12: 0 | L12: 0 | M12: 0 | N12: 0 | O12: 168 | P12: 0 | Q12: 0
A13: 06:30:00 | B13: 0 | C13: 0 | D13: 0 | E13: 0 | F13: 0 | G13: 9 | H13: 0 | I13: 0 | J13: 0 | K13: 0 | L13: 0 | M13: 0 | N13: 0 | O13: 12 | P13: 0 | Q13: 0
A14: 06:30:00 | B14: 0 | C14: 0 | D14: 0 | E14: 0 | F14: 0 | G14: 0 | H14: 0 | I14: 0 | J14: 0 | K14: 0 | L14: 0 | M14: 0 | N14: 0 | O14: 0 | P14: 0 | Q14: 0 | S14: 06:30:00 | T14: =SUM(B12:B14) -> 0 | U14: 0 | V14: 0 | W14: 0 | X14: 0 | Y14: 70 | Z14: 0 | AA14: 0 | AB14: 0 | AC14: 0 | AD14: 0 | AE14: 0 | AF14: 0 | AG14: 180 | AH14: 0 | AI14: 0
A15: 06:45:00 | B15: 1 | C15: 0 | D15: 0 | E15: 0 | F15: 0 | G15: 75 | H15: 0 | I15: 0 | J15: 0 | K15: 0 | L15: 0 | M15: 0 | N15: 0 | O15: 143 | P15: 4 | Q15: 0
A16: 06:45:00 | B16: 0 | C16: 0 | D16: 0 | E16: 0 | F16: 0 | G16: 17 | H16: 0 | I16: 0 | J16: 0 | K16: 0 | L16: 0 | M16: 0 | N16: 0 | O16: 7 | P16: 0 | Q16: 0
A17: 06:45:00 | B17: 0 | C17: 0 | D17: 0 | E17: 0 | F17: 0 | G17: 0 | H17: 0 | I17: 0 | J17: 0 | K17: 0 | L17: 0 | M17: 0 | N17: 0 | O17: 0 | P17: 0 | Q17: 0 | S17: 06:45:00 | T17: =SUM(B15:B17) -> 1 | U17: 0 | V17: 0 | W17: 0 | X17: 0 | Y17: 92 | Z17: 0 | AA17: 0 | AB17: 0 | AC17: 0 | AD17: 0 | AE17: 0 | AF17: 0 | AG17: 150 | AH17: 4 | AI17: 0
A18: 07:00:00 | B18: 1 | C18: 0 | D18: 0 | E18: 0 | F18: 0 | G18: 88 | H18: 0 | I18: 0 | J18: 0 | K18: 0 | L18: 0 | M18: 0 | N18: 0 | O18: 78 | P18: 0 | Q18: 0 | S18: Movement Total | T18: =SUM(T8,T11,T14,T17) -> 1 | U18: 0 | V18: 0 | W18: 0 | X18: 0 | Y18: 282 | Z18: 0 | AA18: 0 | AB18: 0 | AC18: 0 | AD18: 0 | AE18: 0 | AF18: 0 | AG18: 576 | AH18: 4 | AI18: 0 | AK18: 0.75 | AL18: - | AM18: =IF(X$2=FALSE,LOOKUP((Y18+X18)/$AM$4,'Main Line Reduction Table'!$A$1:$B$21,'Main Line Reduction Table'!$C$1:$C$21),LOOKUP(Y18/$AM$4,'Main Line Reduction Table'!$A$1:$B$21,'Main Line Reduction Table'!$C$1:$C$21)) -> 0 | AN18: = | AO18: =AK18-AM18 -> 0.75 | AQ18: 0.2 | AR18: - | AS18: =IF(AF$2=FALSE,LOOKUP((AG18+AF18)/$AS$4,'Main Line Reduction Table'!$A$1:$B$21,'Main Line Reduction Table'!$C$1:$C$21),LOOKUP(AG18/$AS$4,'Main Line Reduction Table'!$A$1:$B$21,'Main Line Reduction Table'!$C$1:$C$21)) -> 0 | AT18: = | AU18: =AQ18-AS18 -> 0.2
A19: 07:00:00 | B19: 0 | C19: 0 | D19: 0 | E19: 0 | F19: 0 | G19: 15 | H19: 0 | I19: 0 | J19: 0 | K19: 0 | L19: 0 | M19: 0 | N19: 0 | O19: 7 | P19: 0 | Q19: 0 | S19: Reduced Movement Total | T19: =T18*(1-AO18) -> 0.25 | U19: =(T18*(1-$AO18))+U18+V18 -> 0.25 | X19: =X18+Y18+Z18 -> 282 | AB19: =AB18*(1-AU18) -> 0 | AC19: =(AB18*(1-$AO18))+AC18+AD18 -> 0 | AF19: =AF18+AG18+AH18 -> 580
A20: 07:00:00 | B20: 0 | C20: 0 | D20: 0 | E20: 0 | F20: 0 | G20: 0 | H20: 0 | I20: 0 | J20: 0 | K20: 0 | L20: 0 | M20: 0 | N20: 0 | O20: 0 | P20: 0 | Q20: 0 | S20: 07:00:00 | T20: =SUM(B18:B20) -> 1 | U20: 0 | V20: 0 | W20: 0 | X20: 0 | Y20: 103 | Z20: 0 | AA20: 0 | AB20: 0 | AC20: 0 | AD20: 0 | AE20: 0 | AF20: 0 | AG20: 85 | AH20: 0 | AI20: 0
A21: 07:15:00 | B21: 0 | C21: 0 | D21: 0 | E21: 0 | F21: 2 | G21: 107 | H21: 0 | I21: 0 | J21: 0 | K21: 0 | L21: 0 | M21: 0 | N21: 0 | O21: 96 | P21: 2 | Q21: 0
A22: 07:15:00 | B22: 0 | C22: 0 | D22: 0 | E22: 0 | F22: 0 | G22: 7 | H22: 0 | I22: 0 | J22: 0 | K22: 0 | L22: 0 | M22: 0 | N22: 0 | O22: 9 | P22: 0 | Q22: 0
A23: 07:15:00 | B23: 0 | C23: 0 | D23: 0 | E23: 0 | F23: 0 | G23: 0 | H23: 0 | I23: 0 | J23: 0 | K23: 0 | L23: 0 | M23: 0 | N23: 0 | O23: 0 | P23: 0 | Q23: 0 | S23: 07:15:00 | T23: =SUM(B21:B23) -> 0 | U23: 0 | V23: 0 | W23: 0 | X23: 2 | Y23: 114 | Z23: 0 | AA23: 0 | AB23: 0 | AC23: 0 | AD23: 0 | AE23: 0 | AF23: 0 | AG23: 105 | AH23: 2 | AI23: 0
A24: 07:30:00 | B24: 1 | C24: 0 | D24: 2 | E24: 0 | F24: 2 | G24: 163 | H24: 0 | I24: 0 | J24: 0 | K24: 0 | L24: 0 | M24: 0 | N24: 0 | O24: 129 | P24: 3 | Q24: 0
A25: 07:30:00 | B25: 0 | C25: 0 | D25: 0 | E25: 0 | F25: 0 | G25: 10 | H25: 0 | I25: 0 | J25: 0 | K25: 0 | L25: 0 | M25: 0 | N25: 0 | O25: 12 | P25: 0 | Q25: 0
A26: 07:30:00 | B26: 0 | C26: 0 | D26: 0 | E26: 0 | F26: 0 | G26: 0 | H26: 0 | I26: 0 | J26: 0 | K26: 0 | L26: 0 | M26: 0 | N26: 0 | O26: 0 | P26: 0 | Q26: 0 | S26: 07:30:00 | T26: =SUM(B24:B26) -> 1 | U26: 0 | V26: 2 | W26: 0 | X26: 2 | Y26: 173 | Z26: 0 | AA26: 0 | AB26: 0 | AC26: 0 | AD26: 0 | AE26: 0 | AF26: 0 | AG26: 141 | AH26: 3 | AI26: 0
A27: 07:45:00 | B27: 1 | C27: 1 | D27: 0 | E27: 0 | F27: 1 | G27: 131 | H27: 0 | I27: 0 | J27: 0 | K27: 0 | L27: 0 | M27: 0 | N27: 0 | O27: 142 | P27: 2 | Q27: 0
A28: 07:45:00 | B28: 0 | C28: 0 | D28: 0 | E28: 0 | F28: 0 | G28: 22 | H28: 0 | I28: 0 | J28: 0 | K28: 0 | L28: 0 | M28: 0 | N28: 0 | O28: 14 | P28: 0 | Q28: 0
A29: 07:45:00 | B29: 0 | C29: 0 | D29: 0 | E29: 0 | F29: 0 | G29: 0 | H29: 0 | I29: 0 | J29: 0 | K29: 0 | L29: 0 | M29: 0 | N29: 0 | O29: 0 | P29: 0 | Q29: 0 | S29: 07:45:00 | T29: =SUM(B27:B29) -> 1 | U29: 1 | V29: 0 | W29: 0 | X29: 1 | Y29: 153 | Z29: 0 | AA29: 0 | AB29: 0 | AC29: 0 | AD29: 0 | AE29: 0 | AF29: 0 | AG29: 156 | AH29: 2 | AI29: 0
A30: 08:00:00 | B30: 1 | C30: 0 | D30: 0 | E30: 0 | F30: 1 | G30: 141 | H30: 0 | I30: 0 | J30: 0 | K30: 0 | L30: 0 | M30: 0 | N30: 0 | O30: 104 | P30: 2 | Q30: 0 | S30: Movement Total | T30: =SUM(T20,T23,T26,T29) -> 3 | U30: 1 | V30: 2 | W30: 0 | X30: 5 | Y30: 543 | Z30: 0 | AA30: 0 | AB30: 0 | AC30: 0 | AD30: 0 | AE30: 0 | AF30: 0 | AG30: 487 | AH30: 7 | AI30: 0 | AK30: 0.75 | AL30: - | AM30: =IF(X$2=FALSE,LOOKUP((Y30+X30)/$AM$4,'Main Line Reduction Table'!$A$1:$B$21,'Main Line Reduction Table'!$C$1:$C$21),LOOKUP(Y30/$AM$4,'Main Line Reduction Table'!$A$1:$B$21,'Main Line Reduction Table'!$C$1:$C$21)) -> 0 | AN30: = | AO30: =AK30-AM30 -> 0.75 | AQ30: 0.2 | AR30: - | AS30: =IF(AF$2=FALSE,LOOKUP((AG30+AF30)/$AS$4,'Main Line Reduction Table'!$A$1:$B$21,'Main Line Reduction Table'!$C$1:$C$21),LOOKUP(AG30/$AS$4,'Main Line Reduction Table'!$A$1:$B$21,'Main Line Reduction Table'!$C$1:$C$21)) -> 0 | AT30: = | AU30: =AQ30-AS30 -> 0.2
A31: 08:00:00 | B31: 0 | C31: 0 | D31: 0 | E31: 0 | F31: 0 | G31: 20 | H31: 0 | I31: 0 | J31: 0 | K31: 0 | L31: 0 | M31: 0 | N31: 0 | O31: 12 | P31: 0 | Q31: 0 | S31: Reduced Movement Total | T31: =T30*(1-AO30) -> 0.75 | U31: =(T30*(1-$AO30))+U30+V30 -> 3.75 | X31: =X30+Y30+Z30 -> 548 | AB31: =AB30*(1-AU30) -> 0 | AC31: =(AB30*(1-$AO30))+AC30+AD30 -> 0 | AF31: =AF30+AG30+AH30 -> 494
A32: 08:00:00 | B32: 0 | C32: 0 | D32: 0 | E32: 0 | F32: 0 | G32: 0 | H32: 0 | I32: 0 | J32: 0 | K32: 0 | L32: 0 | M32: 0 | N32: 0 | O32: 0 | P32: 0 | Q32: 0 | S32: 08:00:00 | T32: =SUM(B30:B32) -> 1 | U32: 0 | V32: 0 | W32: 0 | X32: 1 | Y32: 161 | Z32: 0 | AA32: 0 | AB32: 0 | AC32: 0 | AD32: 0 | AE32: 0 | AF32: 0 | AG32: 116 | AH32: 2 | AI32: 0
A33: 08:15:00 | B33: 3 | C33: 0 | D33: 1 | E33: 0 | F33: 0 | G33: 153 | H33: 0 | I33: 0 | J33: 0 | K33: 0 | L33: 1 | M33: 0 | N33: 1 | O33: 84 | P33: 6 | Q33: 0
A34: 08:15:00 | B34: 0 | C34: 0 | D34: 0 | E34: 0 | F34: 0 | G34: 15 | H34: 0 | I34: 0 | J34: 0 | K34: 0 | L34: 0 | M34: 0 | N34: 0 | O34: 17 | P34: 0 | Q34: 0
A35: 08:15:00 | B35: 0 | C35: 0 | D35: 0 | E35: 0 | F35: 0 | G35: 0 | H35: 0 | I35: 0 | J35: 0 | K35: 0 | L35: 0 | M35: 0 | N35: 0 | O35: 0 | P35: 0 | Q35: 0 | S35: 08:15:00 | T35: =SUM(B33:B35) -> 3 | U35: 0 | V35: 1 | W35: 0 | X35: 0 | Y35: 168 | Z35: 0 | AA35: 0 | AB35: 0 | AC35: 0 | AD35: 1 | AE35: 0 | AF35: 1 | AG35: 101 | AH35: 6 | AI35: 0
A36: 08:30:00 | B36: 6 | C36: 0 | D36: 1 | E36: 0 | F36: 2 | G36: 111 | H36: 0 | I36: 0 | J36: 0 | K36: 0 | L36: 1 | M36: 0 | N36: 1 | O36: 87 | P36: 0 | Q36: 0
A37: 08:30:00 | B37: 0 | C37: 0 | D37: 0 | E37: 0 | F37: 1 | G37: 13 | H37: 0 | I37: 0 | J37: 0 | K37: 0 | L37: 0 | M37: 0 | N37: 0 | O37: 10 | P37: 0 | Q37: 0
A38: 08:30:00 | B38: 0 | C38: 0 | D38: 0 | E38: 0 | F38: 0 | G38: 0 | H38: 0 | I38: 0 | J38: 0 | K38: 0 | L38: 0 | M38: 0 | N38: 0 | O38: 0 | P38: 0 | Q38: 0 | S38: 08:30:00 | T38: =SUM(B36:B38) -> 6 | U38: 0 | V38: 1 | W38: 0 | X38: 3 | Y38: 124 | Z38: 0 | AA38: 0 | AB38: 0 | AC38: 0 | AD38: 1 | AE38: 0 | AF38: 1 | AG38: 97 | AH38: 0 | AI38: 0
A39: 08:45:00 | B39: 3 | C39: 0 | D39: 2 | E39: 0 | F39: 5 | G39: 142 | H39: 1 | I39: 0 | J39: 0 | K39: 1 | L39: 0 | M39: 0 | N39: 0 | O39: 105 | P39: 3 | Q39: 0
A40: 08:45:00 | B40: 1 | C40: 0 | D40: 0 | E40: 0 | F40: 0 | G40: 15 | H40: 0 | I40: 0 | J40: 0 | K40: 0 | L40: 0 | M40: 0 | N40: 0 | O40: 27 | P40: 0 | Q40: 0
A41: 08:45:00 | B41: 0 | C41: 0 | D41: 0 | E41: 0 | F41: 0 | G41: 0 | H41: 0 | I41: 0 | J41: 0 | K41: 0 | L41: 0 | M41: 0 | N41: 0 | O41: 0 | P41: 0 | Q41: 0 | S41: 08:45:00 | T41: =SUM(B39:B41) -> 4 | U41: 0 | V41: 2 | W41: 0 | X41: 5 | Y41: 157 | Z41: 1 | AA41: 0 | AB41: 0 | AC41: 1 | AD41: 0 | AE41: 0 | AF41: 0 | AG41: 132 | AH41: 3 | AI41: 0
A42: 09:00:00 | B42: 3 | C42: 1 | D42: 3 | E42: 0 | F42: 5 | G42: 123 | H42: 0 | I42: 0 | J42: 1 | K42: 0 | L42: 0 | M42: 0 | N42: 1 | O42: 95 | P42: 4 | Q42: 0 | S42: Movement Total | T42: =SUM(T32,T35,T38,T41) -> 14 | U42: 0 | V42: 4 | W42: 0 | X42: 9 | Y42: 610 | Z42: 1 | AA42: 0 | AB42: 0 | AC42: 1 | AD42: 2 | AE42: 0 | AF42: 2 | AG42: 446 | AH42: 11 | AI42: 0 | AK42: 0.75 | AL42: - | AM42: =IF(X$2=FALSE,LOOKUP((Y42+X42)/$AM$4,'Main Line Reduction Table'!$A$1:$B$21,'Main Line Reduction Table'!$C$1:$C$21),LOOKUP(Y42/$AM$4,'Main Line Reduction Table'!$A$1:$B$21,'Main Line Reduction Table'!$C$1:$C$21)) -> 0 | AN42: = | AO42: =AK42-AM42 -> 0.75 | AQ42: 0.4 | AR42: - | AS42: =IF(AF$2=FALSE,LOOKUP((AG42+AF42)/$AS$4,'Main Line Reduction Table'!$A$1:$B$21,'Main Line Reduction Table'!$C$1:$C$21),LOOKUP(AG42/$AS$4,'Main Line Reduction Table'!$A$1:$B$21,'Main Line Reduction Table'!$C$1:$C$21)) -> 0 | AT42: = | AU42: =AQ42-AS42 -> 0.4
A43: 09:00:00 | B43: 0 | C43: 0 | D43: 0 | E43: 0 | F43: 0 | G43: 23 | H43: 0 | I43: 0 | J43: 0 | K43: 0 | L43: 0 | M43: 0 | N43: 0 | O43: 12 | P43: 1 | Q43: 0 | S43: Reduced Movement Total | T43: =T42*(1-AO42) -> 3.5 | U43: =(T42*(1-$AO42))+U42+V42 -> 7.5 | X43: =X42+Y42+Z42 -> 620 | AB43: =AB42*(1-AU42) -> 0 | AC43: =(AB42*(1-$AO42))+AC42+AD42 -> 3 | AF43: =AF42+AG42+AH42 -> 459
A44: 09:00:00 | B44: 0 | C44: 0 | D44: 0 | E44: 0 | F44: 0 | G44: 0 | H44: 0 | I44: 0 | J44: 0 | K44: 0 | L44: 0 | M44: 0 | N44: 0 | O44: 0 | P44: 0 | Q44: 0 | S44: 09:00:00 | T44: =SUM(B42:B44) -> 3 | U44: 1 | V44: 3 | W44: 0 | X44: 5 | Y44: 146 | Z44: 0 | AA44: 0 | AB44: 1 | AC44: 0 | AD44: 0 | AE44: 0 | AF44: 1 | AG44: 107 | AH44: 5 | AI44: 0
A45: 09:15:00 | B45: 2 | C45: 0 | D45: 0 | E45: 0 | F45: 3 | G45: 124 | H45: 2 | I45: 0 | J45: 0 | K45: 0 | L45: 1 | M45: 0 | N45: 2 | O45: 80 | P45: 3 | Q45: 0
A46: 09:15:00 | B46: 2 | C46: 0 | D46: 0 | E46: 0 | F46: 0 | G46: 9 | H46: 0 | I46: 0 | J46: 0 | K46: 0 | L46: 0 | M46: 0 | N46: 0 | O46: 15 | P46: 1 | Q46: 0
A47: 09:15:00 | B47: 0 | C47: 0 | D47: 0 | E47: 0 | F47: 0 | G47: 0 | H47: 0 | I47: 0 | J47: 0 | K47: 0 | L47: 0 | M47: 0 | N47: 0 | O47: 0 | P47: 0 | Q47: 0 | S47: 09:15:00 | T47: =SUM(B45:B47) -> 4 | U47: 0 | V47: 0 | W47: 0 | X47: 3 | Y47: 133 | Z47: 2 | AA47: 0 | AB47: 0 | AC47: 0 | AD47: 1 | AE47: 0 | AF47: 2 | AG47: 95 | AH47: 4 | AI47: 0
A48: 09:30:00 | B48: 9 | C48: 0 | D48: 1 | E48: 0 | F48: 3 | G48: 163 | H48: 3 | I48: 0 | J48: 1 | K48: 0 | L48: 1 | M48: 0 | N48: 5 | O48: 110 | P48: 2 | Q48: 0
A49: 09:30:00 | B49: 0 | C49: 0 | D49: 0 | E49: 0 | F49: 0 | G49: 19 | H49: 0 | I49: 0 | J49: 0 | K49: 0 | L49: 0 | M49: 0 | N49: 0 | O49: 11 | P49: 1 | Q49: 0
A50: 09:30:00 | B50: 0 | C50: 0 | D50: 0 | E50: 0 | F50: 0 | G50: 0 | H50: 0 | I50: 0 | J50: 0 | K50: 0 | L50: 0 | M50: 0 | N50: 0 | O50: 0 | P50: 0 | Q50: 0 | S50: 09:30:00 | T50: =SUM(B48:B50) -> 9 | U50: 0 | V50: 1 | W50: 0 | X50: 3 | Y50: 182 | Z50: 3 | AA50: 0 | AB50: 1 | AC50: 0 | AD50: 1 | AE50: 0 | AF50: 5 | AG50: 121 | AH50: 3 | AI50: 0
A51: 09:45:00 | B51: 4 | C51: 0 | D51: 4 | E51: 0 | F51: 1 | G51: 157 | H51: 2 | I51: 0 | J51: 0 | K51: 0 | L51: 7 | M51: 0 | N51: 4 | O51: 118 | P51: 6 | Q51: 0
A52: 09:45:00 | B52: 0 | C52: 0 | D52: 1 | E52: 0 | F52: 0 | G52: 16 | H52: 0 | I52: 0 | J52: 0 | K52: 0 | L52: 0 | M52: 0 | N52: 0 | O52: 17 | P52: 0 | Q52: 0
A53: 09:45:00 | B53: 0 | C53: 0 | D53: 0 | E53: 0 | F53: 0 | G53: 0 | H53: 0 | I53: 0 | J53: 0 | K53: 0 | L53: 0 | M53: 0 | N53: 0 | O53: 0 | P53: 0 | Q53: 0 | S53: 09:45:00 | T53: =SUM(B51:B53) -> 4 | U53: 0 | V53: 5 | W53: 0 | X53: 1 | Y53: 173 | Z53: 2 | AA53: 0 | AB53: 0 | AC53: 0 | AD53: 7 | AE53: 0 | AF53: 4 | AG53: 135 | AH53: 6 | AI53: 0
A54: 10:00:00 | B54: 4 | C54: 0 | D54: 1 | E54: 0 | F54: 5 | G54: 139 | H54: 2 | I54: 0 | J54: 3 | K54: 0 | L54: 5 | M54: 0 | N54: 5 | O54: 102 | P54: 7 | Q54: 0 | S54: Movement Total | T54: =SUM(T44,T47,T50,T53) -> 20 | U54: 1 | V54: 9 | W54: 0 | X54: 12 | Y54: 634 | Z54: 7 | AA54: 0 | AB54: 2 | AC54: 0 | AD54: 9 | AE54: 0 | AF54: 12 | AG54: 458 | AH54: 18 | AI54: 0 | AK54: 0.75 | AL54: - | AM54: =IF(X$2=FALSE,LOOKUP((Y54+X54)/$AM$4,'Main Line Reduction Table'!$A$1:$B$21,'Main Line Reduction Table'!$C$1:$C$21),LOOKUP(Y54/$AM$4,'Main Line Reduction Table'!$A$1:$B$21,'Main Line Reduction Table'!$C$1:$C$21)) -> 0 | AN54: = | AO54: =AK54-AM54 -> 0.75 | AQ54: 0.6 | AR54: - | AS54: =IF(AF$2=FALSE,LOOKUP((AG54+AF54)/$AS$4,'Main Line Reduction Table'!$A$1:$B$21,'Main Line Reduction Table'!$C$1:$C$21),LOOKUP(AG54/$AS$4,'Main Line Reduction Table'!$A$1:$B$21,'Main Line Reduction Table'!$C$1:$C$21)) -> 0 | AT54: = | AU54: =AQ54-AS54 -> 0.6
A55: 10:00:00 | B55: 0 | C55: 0 | D55: 0 | E55: 0 | F55: 0 | G55: 15 | H55: 0 | I55: 0 | J55: 0 | K55: 0 | L55: 0 | M55: 0 | N55: 0 | O55: 12 | P55: 0 | Q55: 0 | S55: Reduced Movement Total | T55: =T54*(1-AO54) -> 5 | U55: =(T54*(1-$AO54))+U54+V54 -> 15 | X55: =X54+Y54+Z54 -> 653 | AB55: =AB54*(1-AU54) -> 0.8 | AC55: =(AB54*(1-$AO54))+AC54+AD54 -> 9.5 | AF55: =AF54+AG54+AH54 -> 488
A56: 10:00:00 | B56: 0 | C56: 0 | D56: 0 | E56: 0 | F56: 0 | G56: 0 | H56: 0 | I56: 0 | J56: 0 | K56: 0 | L56: 0 | M56: 0 | N56: 0 | O56: 0 | P56: 0 | Q56: 0 | S56: 10:00:00 | T56: =SUM(B54:B56) -> 4 | U56: 0 | V56: 1 | W56: 0 | X56: 5 | Y56: 154 | Z56: 2 | AA56: 0 | AB56: 3 | AC56: 0 | AD56: 5 | AE56: 0 | AF56: 5 | AG56: 114 | AH56: 7 | AI56: 0
A57: 10:15:00 | B57: 12 | C57: 0 | D57: 1 | E57: 0 | F57: 2 | G57: 166 | H57: 1 | I57: 0 | J57: 1 | K57: 0 | L57: 4 | M57: 0 | N57: 10 | O57: 124 | P57: 12 | Q57: 0
A58: 10:15:00 | B58: 0 | C58: 0 | D58: 0 | E58: 0 | F58: 0 | G58: 13 | H58: 0 | I58: 0 | J58: 0 | K58: 0 | L58: 0 | M58: 0 | N58: 0 | O58: 16 | P58: 0 | Q58: 0
A59: 10:15:00 | B59: 0 | C59: 0 | D59: 0 | E59: 0 | F59: 0 | G59: 0 | H59: 0 | I59: 0 | J59: 0 | K59: 0 | L59: 0 | M59: 0 | N59: 0 | O59: 0 | P59: 0 | Q59: 0 | S59: 10:15:00 | T59: =SUM(B57:B59) -> 12 | U59: 0 | V59: 1 | W59: 0 | X59: 2 | Y59: 179 | Z59: 1 | AA59: 0 | AB59: 1 | AC59: 0 | AD59: 4 | AE59: 0 | AF59: 10 | AG59: 140 | AH59: 12 | AI59: 0
A60: 10:30:00 | B60: 8 | C60: 1 | D60: 2 | E60: 0 | F60: 3 | G60: 162 | H60: 1 | I60: 0 | J60: 2 | K60: 0 | L60: 5 | M60: 0 | N60: 6 | O60: 127 | P60: 5 | Q60: 0
A61: 10:30:00 | B61: 0 | C61: 0 | D61: 0 | E61: 0 | F61: 0 | G61: 11 | H61: 0 | I61: 0 | J61: 0 | K61: 0 | L61: 0 | M61: 0 | N61: 0 | O61: 23 | P61: 1 | Q61: 0
A62: 10:30:00 | B62: 0 | C62: 0 | D62: 0 | E62: 0 | F62: 0 | G62: 0 | H62: 0 | I62: 0 | J62: 0 | K62: 0 | L62: 0 | M62: 0 | N62: 0 | O62: 0 | P62: 0 | Q62: 0 | S62: 10:30:00 | T62: =SUM(B60:B62) -> 8 | U62: 1 | V62: 2 | W62: 0 | X62: 3 | Y62: 173 | Z62: 1 | AA62: 0 | AB62: 2 | AC62: 0 | AD62: 5 | AE62: 0 | AF62: 6 | AG62: 150 | AH62: 6 | AI62: 0
A63: 10:45:00 | B63: 8 | C63: 0 | D63: 3 | E63: 0 | F63: 5 | G63: 163 | H63: 3 | I63: 0 | J63: 3 | K63: 1 | L63: 3 | M63: 0 | N63: 8 | O63: 127 | P63: 5 | Q63: 0
A64: 10:45:00 | B64: 1 | C64: 0 | D64: 0 | E64: 0 | F64: 0 | G64: 12 | H64: 0 | I64: 0 | J64: 0 | K64: 0 | L64: 0 | M64: 0 | N64: 0 | O64: 13 | P64: 0 | Q64: 0
A65: 10:45:00 | B65: 0 | C65: 0 | D65: 0 | E65: 0 | F65: 0 | G65: 0 | H65: 0 | I65: 0 | J65: 0 | K65: 0 | L65: 0 | M65: 0 | N65: 0 | O65: 0 | P65: 0 | Q65: 0 | S65: 10:45:00 | T65: =SUM(B63:B65) -> 9 | U65: 0 | V65: 3 | W65: 0 | X65: 5 | Y65: 175 | Z65: 3 | AA65: 0 | AB65: 3 | AC65: 1 | AD65: 3 | AE65: 0 | AF65: 8 | AG65: 140 | AH65: 5 | AI65: 0
A66: 11:00:00 | B66: 11 | C66: 0 | D66: 4 | E66: 0 | F66: 5 | G66: 211 | H66: 0 | I66: 0 | J66: 1 | K66: 1 | L66: 6 | M66: 0 | N66: 14 | O66: 130 | P66: 8 | Q66: 0 | S66: Movement Total | T66: =SUM(T56,T59,T62,T65) -> 33 | U66: 1 | V66: 7 | W66: 0 | X66: 15 | Y66: 681 | Z66: 7 | AA66: 0 | AB66: 9 | AC66: 1 | AD66: 17 | AE66: 0 | AF66: 29 | AG66: 544 | AH66: 30 | AI66: 0 | AK66: 0.75 | AL66: - | AM66: =IF(X$2=FALSE,LOOKUP((Y66+X66)/$AM$4,'Main Line Reduction Table'!$A$1:$B$21,'Main Line Reduction Table'!$C$1:$C$21),LOOKUP(Y66/$AM$4,'Main Line Reduction Table'!$A$1:$B$21,'Main Line Reduction Table'!$C$1:$C$21)) -> 0 | AN66: = | AO66: =AK66-AM66 -> 0.75 | AQ66: 0.6 | AR66: - | AS66: =IF(AF$2=FALSE,LOOKUP((AG66+AF66)/$AS$4,'Main Line Reduction Table'!$A$1:$B$21,'Main Line Reduction Table'!$C$1:$C$21),LOOKUP(AG66/$AS$4,'Main Line Reduction Table'!$A$1:$B$21,'Main Line Reduction Table'!$C$1:$C$21)) -> 0 | AT66: = | AU66: =AQ66-AS66 -> 0.6
A67: 11:00:00 | B67: 0 | C67: 0 | D67: 0 | E67: 0 | F67: 0 | G67: 22 | H67: 0 | I67: 0 | J67: 0 | K67: 0 | L67: 0 | M67: 0 | N67: 0 | O67: 12 | P67: 0 | Q67: 0 | S67: Reduced Movement Total | T67: =T66*(1-AO66) -> 8.25 | U67: =(T66*(1-$AO66))+U66+V66 -> 16.25 | X67: =X66+Y66+Z66 -> 703 | AB67: =AB66*(1-AU66) -> 3.6 | AC67: =(AB66*(1-$AO66))+AC66+AD66 -> 20.25 | AF67: =AF66+AG66+AH66 -> 603
A68: 11:00:00 | B68: 0 | C68: 0 | D68: 0 | E68: 0 | F68: 0 | G68: 0 | H68: 0 | I68: 0 | J68: 0 | K68: 0 | L68: 0 | M68: 0 | N68: 0 | O68: 0 | P68: 0 | Q68: 0 | S68: 11:00:00 | T68: =SUM(B66:B68) -> 11 | U68: 0 | V68: 4 | W68: 0 | X68: 5 | Y68: 233 | Z68: 0 | AA68: 0 | AB68: 1 | AC68: 1 | AD68: 6 | AE68: 0 | AF68: 14 | AG68: 142 | AH68: 8 | AI68: 0
A69: 11:15:00 | B69: 7 | C69: 0 | D69: 4 | E69: 0 | F69: 8 | G69: 207 | H69: 1 | I69: 0 | J69: 0 | K69: 0 | L69: 7 | M69: 0 | N69: 6 | O69: 139 | P69: 9 | Q69: 0
A70: 11:15:00 | B70: 0 | C70: 0 | D70: 0 | E70: 0 | F70: 0 | G70: 14 | H70: 0 | I70: 0 | J70: 0 | K70: 0 | L70: 0 | M70: 0 | N70: 0 | O70: 21 | P70: 0 | Q70: 0
A71: 11:15:00 | B71: 0 | C71: 0 | D71: 0 | E71: 0 | F71: 0 | G71: 0 | H71: 0 | I71: 0 | J71: 0 | K71: 0 | L71: 0 | M71: 0 | N71: 0 | O71: 0 | P71: 0 | Q71: 0 | S71: 11:15:00 | T71: =SUM(B69:B71) -> 7 | U71: 0 | V71: 4 | W71: 0 | X71: 8 | Y71: 221 | Z71: 1 | AA71: 0 | AB71: 0 | AC71: 0 | AD71: 7 | AE71: 0 | AF71: 6 | AG71: 160 | AH71: 9 | AI71: 0
A72: 11:30:00 | B72: 12 | C72: 0 | D72: 1 | E72: 0 | F72: 2 | G72: 246 | H72: 0 | I72: 0 | J72: 0 | K72: 0 | L72: 5 | M72: 0 | N72: 9 | O72: 154 | P72: 9 | Q72: 0
A73: 11:30:00 | B73: 0 | C73: 0 | D73: 0 | E73: 0 | F73: 0 | G73: 17 | H73: 0 | I73: 0 | J73: 0 | K73: 0 | L73: 0 | M73: 0 | N73: 0 | O73: 11 | P73: 0 | Q73: 0
A74: 11:30:00 | B74: 0 | C74: 0 | D74: 0 | E74: 0 | F74: 0 | G74: 0 | H74: 0 | I74: 0 | J74: 0 | K74: 0 | L74: 0 | M74: 0 | N74: 0 | O74: 0 | P74: 0 | Q74: 0 | S74: 11:30:00 | T74: =SUM(B72:B74) -> 12 | U74: 0 | V74: 1 | W74: 0 | X74: 2 | Y74: 263 | Z74: 0 | AA74: 0 | AB74: 0 | AC74: 0 | AD74: 5 | AE74: 0 | AF74: 9 | AG74: 165 | AH74: 9 | AI74: 0
A75: 11:45:00 | B75: 9 | C75: 0 | D75: 2 | E75: 0 | F75: 2 | G75: 203 | H75: 2 | I75: 0 | J75: 2 | K75: 0 | L75: 5 | M75: 0 | N75: 3 | O75: 170 | P75: 7 | Q75: 0
A76: 11:45:00 | B76: 0 | C76: 0 | D76: 0 | E76: 0 | F76: 0 | G76: 16 | H76: 0 | I76: 0 | J76: 0 | K76: 0 | L76: 0 | M76: 0 | N76: 0 | O76: 19 | P76: 0 | Q76: 0
A77: 11:45:00 | B77: 0 | C77: 0 | D77: 0 | E77: 0 | F77: 0 | G77: 0 | H77: 0 | I77: 0 | J77: 0 | K77: 0 | L77: 0 | M77: 0 | N77: 0 | O77: 0 | P77: 0 | Q77: 0 | S77: 11:45:00 | T77: =SUM(B75:B77) -> 9 | U77: 0 | V77: 2 | W77: 0 | X77: 2 | Y77: 219 | Z77: 2 | AA77: 0 | AB77: 2 | AC77: 0 | AD77: 5 | AE77: 0 | AF77: 3 | AG77: 189 | AH77: 7 | AI77: 0
A78: 12:00:00 | B78: 9 | C78: 1 | D78: 0 | E78: 0 | F78: 5 | G78: 220 | H78: 1 | I78: 0 | J78: 1 | K78: 0 | L78: 4 | M78: 0 | N78: 7 | O78: 148 | P78: 9 | Q78: 0 | S78: Movement Total | T78: =SUM(T68,T71,T74,T77) -> 39 | U78: 0 | V78: 11 | W78: 0 | X78: 17 | Y78: 936 | Z78: 3 | AA78: 0 | AB78: 3 | AC78: 1 | AD78: 23 | AE78: 0 | AF78: 32 | AG78: 656 | AH78: 33 | AI78: 0 | AK78: 0.75 | AL78: - | AM78: =IF(X$2=FALSE,LOOKUP((Y78+X78)/$AM$4,'Main Line Reduction Table'!$A$1:$B$21,'Main Line Reduction Table'!$C$1:$C$21),LOOKUP(Y78/$AM$4,'Main Line Reduction Table'!$A$1:$B$21,'Main Line Reduction Table'!$C$1:$C$21)) -> 0.05 | AN78: = | AO78: =AK78-AM78 -> 0.7 | AQ78: 0.6 | AR78: - | AS78: =IF(AF$2=FALSE,LOOKUP((AG78+AF78)/$AS$4,'Main Line Reduction Table'!$A$1:$B$21,'Main Line Reduction Table'!$C$1:$C$21),LOOKUP(AG78/$AS$4,'Main Line Reduction Table'!$A$1:$B$21,'Main Line Reduction Table'!$C$1:$C$21)) -> 0 | AT78: = | AU78: =AQ78-AS78 -> 0.6
A79: 12:00:00 | B79: 0 | C79: 0 | D79: 0 | E79: 0 | F79: 0 | G79: 10 | H79: 0 | I79: 0 | J79: 0 | K79: 0 | L79: 0 | M79: 0 | N79: 0 | O79: 15 | P79: 0 | Q79: 0 | S79: Reduced Movement Total | T79: =T78*(1-AO78) -> 11.7 | U79: =(T78*(1-$AO78))+U78+V78 -> 22.7 | X79: =X78+Y78+Z78 -> 956 | AB79: =AB78*(1-AU78) -> 1.2 | AC79: =(AB78*(1-$AO78))+AC78+AD78 -> 24.9 | AF79: =AF78+AG78+AH78 -> 721
A80: 12:00:00 | B80: 0 | C80: 0 | D80: 0 | E80: 0 | F80: 0 | G80: 0 | H80: 0 | I80: 0 | J80: 0 | K80: 0 | L80: 0 | M80: 0 | N80: 0 | O80: 0 | P80: 0 | Q80: 0 | S80: 12:00:00 | T80: =SUM(B78:B80) -> 9 | U80: 1 | V80: 0 | W80: 0 | X80: 5 | Y80: 230 | Z80: 1 | AA80: 0 | AB80: 1 | AC80: 0 | AD80: 4 | AE80: 0 | AF80: 7 | AG80: 163 | AH80: 9 | AI80: 0
A81: 12:15:00 | B81: 14 | C81: 0 | D81: 3 | E81: 0 | F81: 9 | G81: 186 | H81: 2 | I81: 0 | J81: 0 | K81: 0 | L81: 7 | M81: 0 | N81: 5 | O81: 193 | P81: 8 | Q81: 0
A82: 12:15:00 | B82: 0 | C82: 0 | D82: 0 | E82: 0 | F82: 1 | G82: 11 | H82: 0 | I82: 0 | J82: 0 | K82: 0 | L82: 0 | M82: 0 | N82: 0 | O82: 13 | P82: 0 | Q82: 0
A83: 12:15:00 | B83: 0 | C83: 0 | D83: 0 | E83: 0 | F83: 0 | G83: 0 | H83: 0 | I83: 0 | J83: 0 | K83: 0 | L83: 0 | M83: 0 | N83: 0 | O83: 0 | P83: 0 | Q83: 0 | S83: 12:15:00 | T83: =SUM(B81:B83) -> 14 | U83: 0 | V83: 3 | W83: 0 | X83: 10 | Y83: 197 | Z83: 2 | AA83: 0 | AB83: 0 | AC83: 0 | AD83: 7 | AE83: 0 | AF83: 5 | AG83: 206 | AH83: 8 | AI83: 0
A84: 12:30:00 | B84: 21 | C84: 0 | D84: 2 | E84: 0 | F84: 5 | G84: 173 | H84: 2 | I84: 0 | J84: 2 | K84: 0 | L84: 2 | M84: 0 | N84: 7 | O84: 186 | P84: 11 | Q84: 0
A85: 12:30:00 | B85: 1 | C85: 0 | D85: 0 | E85: 0 | F85: 0 | G85: 19 | H85: 0 | I85: 0 | J85: 0 | K85: 0 | L85: 0 | M85: 0 | N85: 0 | O85: 14 | P85: 0 | Q85: 0
A86: 12:30:00 | B86: 0 | C86: 0 | D86: 0 | E86: 0 | F86: 0 | G86: 0 | H86: 0 | I86: 0 | J86: 0 | K86: 0 | L86: 0 | M86: 0 | N86: 0 | O86: 0 | P86: 0 | Q86: 0 | S86: 12:30:00 | T86: =SUM(B84:B86) -> 22 | U86: 0 | V86: 2 | W86: 0 | X86: 5 | Y86: 192 | Z86: 2 | AA86: 0 | AB86: 2 | AC86: 0 | AD86: 2 | AE86: 0 | AF86: 7 | AG86: 200 | AH86: 11 | AI86: 0
A87: 12:45:00 | B87: 7 | C87: 0 | D87: 2 | E87: 0 | F87: 4 | G87: 157 | H87: 3 | I87: 0 | J87: 2 | K87: 1 | L87: 2 | M87: 0 | N87: 6 | O87: 145 | P87: 10 | Q87: 0
A88: 12:45:00 | B88: 0 | C88: 0 | D88: 0 | E88: 0 | F88: 0 | G88: 13 | H88: 0 | I88: 0 | J88: 0 | K88: 0 | L88: 0 | M88: 0 | N88: 1 | O88: 15 | P88: 0 | Q88: 0
A89: 12:45:00 | B89: 0 | C89: 0 | D89: 0 | E89: 0 | F89: 0 | G89: 0 | H89: 0 | I89: 0 | J89: 0 | K89: 0 | L89: 0 | M89: 0 | N89: 0 | O89: 0 | P89: 0 | Q89: 0 | S89: 12:45:00 | T89: =SUM(B87:B89) -> 7 | U89: 0 | V89: 2 | W89: 0 | X89: 4 | Y89: 170 | Z89: 3 | AA89: 0 | AB89: 2 | AC89: 1 | AD89: 2 | AE89: 0 | AF89: 7 | AG89: 160 | AH89: 10 | AI89: 0
A90: 13:00:00 | B90: 11 | C90: 1 | D90: 2 | E90: 0 | F90: 6 | G90: 162 | H90: 1 | I90: 0 | J90: 2 | K90: 0 | L90: 3 | M90: 0 | N90: 6 | O90: 152 | P90: 8 | Q90: 0 | S90: Movement Total | T90: =SUM(T80,T83,T86,T89) -> 52 | U90: 1 | V90: 7 | W90: 0 | X90: 24 | Y90: 789 | Z90: 8 | AA90: 0 | AB90: 5 | AC90: 1 | AD90: 15 | AE90: 0 | AF90: 26 | AG90: 729 | AH90: 38 | AI90: 0 | AK90: 0.75 | AL90: - | AM90: =IF(X$2=FALSE,LOOKUP((Y90+X90)/$AM$4,'Main Line Reduction Table'!$A$1:$B$21,'Main Line Reduction Table'!$C$1:$C$21),LOOKUP(Y90/$AM$4,'Main Line Reduction Table'!$A$1:$B$21,'Main Line Reduction Table'!$C$1:$C$21)) -> 0.05 | AN90: = | AO90: =AK90-AM90 -> 0.7 | AQ90: 0.6 | AR90: - | AS90: =IF(AF$2=FALSE,LOOKUP((AG90+AF90)/$AS$4,'Main Line Reduction Table'!$A$1:$B$21,'Main Line Reduction Table'!$C$1:$C$21),LOOKUP(AG90/$AS$4,'Main Line Reduction Table'!$A$1:$B$21,'Main Line Reduction Table'!$C$1:$C$21)) -> 0 | AT90: = | AU90: =AQ90-AS90 -> 0.6
A91: 13:00:00 | B91: 0 | C91: 0 | D91: 0 | E91: 0 | F91: 0 | G91: 16 | H91: 0 | I91: 0 | J91: 0 | K91: 0 | L91: 0 | M91: 0 | N91: 0 | O91: 12 | P91: 1 | Q91: 0 | S91: Reduced Movement Total | T91: =T90*(1-AO90) -> 15.6 | U91: =(T90*(1-$AO90))+U90+V90 -> 23.6 | X91: =X90+Y90+Z90 -> 821 | AB91: =AB90*(1-AU90) -> 2 | AC91: =(AB90*(1-$AO90))+AC90+AD90 -> 17.5 | AF91: =AF90+AG90+AH90 -> 793
A92: 13:00:00 | B92: 0 | C92: 0 | D92: 0 | E92: 0 | F92: 0 | G92: 0 | H92: 0 | I92: 0 | J92: 0 | K92: 0 | L92: 0 | M92: 0 | N92: 0 | O92: 0 | P92: 0 | Q92: 0 | S92: 13:00:00 | T92: =SUM(B90:B92) -> 11 | U92: 1 | V92: 2 | W92: 0 | X92: 6 | Y92: 178 | Z92: 1 | AA92: 0 | AB92: 2 | AC92: 0 | AD92: 3 | AE92: 0 | AF92: 6 | AG92: 164 | AH92: 9 | AI92: 0
A93: 13:15:00 | B93: 14 | C93: 1 | D93: 1 | E93: 0 | F93: 3 | G93: 156 | H93: 2 | I93: 0 | J93: 0 | K93: 1 | L93: 1 | M93: 0 | N93: 8 | O93: 148 | P93: 4 | Q93: 0
A94: 13:15:00 | B94: 1 | C94: 0 | D94: 0 | E94: 0 | F94: 1 | G94: 12 | H94: 0 | I94: 0 | J94: 0 | K94: 0 | L94: 0 | M94: 0 | N94: 1 | O94: 15 | P94: 2 | Q94: 0
A95: 13:15:00 | B95: 0 | C95: 0 | D95: 0 | E95: 0 | F95: 0 | G95: 0 | H95: 0 | I95: 0 | J95: 0 | K95: 0 | L95: 0 | M95: 0 | N95: 0 | O95: 0 | P95: 0 | Q95: 0 | S95: 13:15:00 | T95: =SUM(B93:B95) -> 15 | U95: 1 | V95: 1 | W95: 0 | X95: 4 | Y95: 168 | Z95: 2 | AA95: 0 | AB95: 0 | AC95: 1 | AD95: 1 | AE95: 0 | AF95: 9 | AG95: 163 | AH95: 6 | AI95: 0
A96: 13:30:00 | B96: 11 | C96: 0 | D96: 3 | E96: 0 | F96: 8 | G96: 168 | H96: 1 | I96: 0 | J96: 1 | K96: 0 | L96: 8 | M96: 0 | N96: 5 | O96: 151 | P96: 6 | Q96: 0
A97: 13:30:00 | B97: 0 | C97: 0 | D97: 0 | E97: 0 | F97: 0 | G97: 6 | H97: 0 | I97: 0 | J97: 0 | K97: 0 | L97: 0 | M97: 0 | N97: 0 | O97: 13 | P97: 0 | Q97: 0
A98: 13:30:00 | B98: 0 | C98: 0 | D98: 0 | E98: 0 | F98: 0 | G98: 0 | H98: 0 | I98: 0 | J98: 0 | K98: 0 | L98: 0 | M98: 0 | N98: 0 | O98: 0 | P98: 0 | Q98: 0 | S98: 13:30:00 | T98: =SUM(B96:B98) -> 11 | U98: 0 | V98: 3 | W98: 0 | X98: 8 | Y98: 174 | Z98: 1 | AA98: 0 | AB98: 1 | AC98: 0 | AD98: 8 | AE98: 0 | AF98: 5 | AG98: 164 | AH98: 6 | AI98: 0
A99: 13:45:00 | B99: 14 | C99: 1 | D99: 6 | E99: 0 | F99: 9 | G99: 178 | H99: 2 | I99: 0 | J99: 0 | K99: 0 | L99: 11 | M99: 0 | N99: 6 | O99: 144 | P99: 8 | Q99: 0
A100: 13:45:00 | B100: 0 | C100: 0 | D100: 0 | E100: 0 | F100: 0 | G100: 7 | H100: 0 | I100: 0 | J100: 0 | K100: 0 | L100: 0 | M100: 0 | N100: 0 | O100: 12 | P100: 1 | Q100: 0
A101: 13:45:00 | B101: 0 | C101: 0 | D101: 0 | E101: 0 | F101: 0 | G101: 0 | H101: 0 | I101: 0 | J101: 0 | K101: 0 | L101: 0 | M101: 0 | N101: 0 | O101: 0 | P101: 0 | Q101: 0 | S101: 13:45:00 | T101: =SUM(B99:B101) -> 14 | U101: 1 | V101: 6 | W101: 0 | X101: 9 | Y101: 185 | Z101: 2 | AA101: 0 | AB101: 0 | AC101: 0 | AD101: 11 | AE101: 0 | AF101: 6 | AG101: 156 | AH101: 9 | AI101: 0
A102: 14:00:00 | B102: 13 | C102: 0 | D102: 1 | E102: 0 | F102: 4 | G102: 159 | H102: 2 | I102: 0 | J102: 1 | K102: 1 | L102: 6 | M102: 0 | N102: 3 | O102: 195 | P102: 5 | Q102: 0 | S102: Movement Total | T102: =SUM(T92,T95,T98,T101) -> 51 | U102: 3 | V102: 12 | W102: 0 | X102: 27 | Y102: 705 | Z102: 6 | AA102: 0 | AB102: 3 | AC102: 1 | AD102: 23 | AE102: 0 | AF102: 26 | AG102: 647 | AH102: 30 | AI102: 0 | AK102: 0.75 | AL102: - | AM102: =IF(X$2=FALSE,LOOKUP((Y102+X102)/$AM$4,'Main Line Reduction Table'!$A$1:$B$21,'Main Line Reduction Table'!$C$1:$C$21),LOOKUP(Y102/$AM$4,'Main Line Reduction Table'!$A$1:$B$21,'Main Line Reduction Table'!$C$1:$C$21)) -> 0 | AN102: = | AO102: =AK102-AM102 -> 0.75 | AQ102: 0.6 | AR102: - | AS102: =IF(AF$2=FALSE,LOOKUP((AG102+AF102)/$AS$4,'Main Line Reduction Table'!$A$1:$B$21,'Main Line Reduction Table'!$C$1:$C$21),LOOKUP(AG102/$AS$4,'Main Line Reduction Table'!$A$1:$B$21,'Main Line Reduction Table'!$C$1:$C$21)) -> 0 | AT102: = | AU102: =AQ102-AS102 -> 0.6
A103: 14:00:00 | B103: 1 | C103: 0 | D103: 0 | E103: 0 | F103: 0 | G103: 17 | H103: 0 | I103: 0 | J103: 1 | K103: 0 | L103: 0 | M103: 0 | N103: 1 | O103: 10 | P103: 0 | Q103: 0 | S103: Reduced Movement Total | T103: =T102*(1-AO102) -> 12.75 | U103: =(T102*(1-$AO102))+U102+V102 -> 27.75 | X103: =X102+Y102+Z102 -> 738 | AB103: =AB102*(1-AU102) -> 1.2 | AC103: =(AB102*(1-$AO102))+AC102+AD102 -> 24.75 | AF103: =AF102+AG102+AH102 -> 703
A104: 14:00:00 | B104: 0 | C104: 0 | D104: 0 | E104: 0 | F104: 0 | G104: 0 | H104: 0 | I104: 0 | J104: 0 | K104: 0 | L104: 0 | M104: 0 | N104: 0 | O104: 0 | P104: 0 | Q104: 0 | S104: 14:00:00 | T104: =SUM(B102:B104) -> 14 | U104: 0 | V104: 1 | W104: 0 | X104: 4 | Y104: 176 | Z104: 2 | AA104: 0 | AB104: 2 | AC104: 1 | AD104: 6 | AE104: 0 | AF104: 4 | AG104: 205 | AH104: 5 | AI104: 0
A105: 14:15:00 | B105: 11 | C105: 0 | D105: 2 | E105: 0 | F105: 6 | G105: 171 | H105: 3 | I105: 0 | J105: 2 | K105: 1 | L105: 7 | M105: 0 | N105: 10 | O105: 155 | P105: 8 | Q105: 0
A106: 14:15:00 | B106: 0 | C106: 0 | D106: 0 | E106: 0 | F106: 0 | G106: 8 | H106: 0 | I106: 0 | J106: 0 | K106: 0 | L106: 0 | M106: 0 | N106: 0 | O106: 13 | P106: 0 | Q106: 0
A107: 14:15:00 | B107: 0 | C107: 0 | D107: 0 | E107: 0 | F107: 0 | G107: 0 | H107: 0 | I107: 0 | J107: 0 | K107: 0 | L107: 0 | M107: 0 | N107: 0 | O107: 0 | P107: 0 | Q107: 0 | S107: 14:15:00 | T107: =SUM(B105:B107) -> 11 | U107: 0 | V107: 2 | W107: 0 | X107: 6 | Y107: 179 | Z107: 3 | AA107: 0 | AB107: 2 | AC107: 1 | AD107: 7 | AE107: 0 | AF107: 10 | AG107: 168 | AH107: 8 | AI107: 0
A108: 14:30:00 | B108: 9 | C108: 0 | D108: 1 | E108: 0 | F108: 2 | G108: 189 | H108: 3 | I108: 0 | J108: 2 | K108: 0 | L108: 4 | M108: 0 | N108: 7 | O108: 131 | P108: 5 | Q108: 0
A109: 14:30:00 | B109: 0 | C109: 0 | D109: 0 | E109: 0 | F109: 0 | G109: 12 | H109: 1 | I109: 0 | J109: 0 | K109: 0 | L109: 0 | M109: 0 | N109: 0 | O109: 11 | P109: 0 | Q109: 0
A110: 14:30:00 | B110: 0 | C110: 0 | D110: 0 | E110: 0 | F110: 0 | G110: 0 | H110: 0 | I110: 0 | J110: 0 | K110: 0 | L110: 0 | M110: 0 | N110: 0 | O110: 0 | P110: 0 | Q110: 0 | S110: 14:30:00 | T110: =SUM(B108:B110) -> 9 | U110: 0 | V110: 1 | W110: 0 | X110: 2 | Y110: 201 | Z110: 4 | AA110: 0 | AB110: 2 | AC110: 0 | AD110: 4 | AE110: 0 | AF110: 7 | AG110: 142 | AH110: 5 | AI110: 0
A111: 14:45:00 | B111: 3 | C111: 0 | D111: 1 | E111: 0 | F111: 6 | G111: 198 | H111: 1 | I111: 0 | J111: 3 | K111: 0 | L111: 5 | M111: 0 | N111: 8 | O111: 173 | P111: 6 | Q111: 0
A112: 14:45:00 | B112: 0 | C112: 0 | D112: 0 | E112: 0 | F112: 0 | G112: 20 | H112: 0 | I112: 0 | J112: 0 | K112: 0 | L112: 0 | M112: 0 | N112: 0 | O112: 8 | P112: 0 | Q112: 0
A113: 14:45:00 | B113: 0 | C113: 0 | D113: 0 | E113: 0 | F113: 0 | G113: 0 | H113: 0 | I113: 0 | J113: 0 | K113: 0 | L113: 0 | M113: 0 | N113: 0 | O113: 0 | P113: 0 | Q113: 0 | S113: 14:45:00 | T113: =SUM(B111:B113) -> 3 | U113: 0 | V113: 1 | W113: 0 | X113: 6 | Y113: 218 | Z113: 1 | AA113: 0 | AB113: 3 | AC113: 0 | AD113: 5 | AE113: 0 | AF113: 8 | AG113: 181 | AH113: 6 | AI113: 0
A114: 15:00:00 | B114: 8 | C114: 1 | D114: 4 | E114: 0 | F114: 3 | G114: 220 | H114: 3 | I114: 0 | J114: 2 | K114: 0 | L114: 8 | M114: 0 | N114: 2 | O114: 167 | P114: 6 | Q114: 0 | S114: Movement Total | T114: =SUM(T104,T107,T110,T113) -> 37 | U114: 0 | V114: 5 | W114: 0 | X114: 18 | Y114: 774 | Z114: 10 | AA114: 0 | AB114: 9 | AC114: 2 | AD114: 22 | AE114: 0 | AF114: 29 | AG114: 696 | AH114: 24 | AI114: 0 | AK114: 0.75 | AL114: - | AM114: =IF(X$2=FALSE,LOOKUP((Y114+X114)/$AM$4,'Main Line Reduction Table'!$A$1:$B$21,'Main Line Reduction Table'!$C$1:$C$21),LOOKUP(Y114/$AM$4,'Main Line Reduction Table'!$A$1:$B$21,'Main Line Reduction Table'!$C$1:$C$21)) -> 0 | AN114: = | AO114: =AK114-AM114 -> 0.75 | AQ114: 0.6 | AR114: - | AS114: =IF(AF$2=FALSE,LOOKUP((AG114+AF114)/$AS$4,'Main Line Reduction Table'!$A$1:$B$21,'Main Line Reduction Table'!$C$1:$C$21),LOOKUP(AG114/$AS$4,'Main Line Reduction Table'!$A$1:$B$21,'Main Line Reduction Table'!$C$1:$C$21)) -> 0 | AT114: = | AU114: =AQ114-AS114 -> 0.6
A115: 15:00:00 | B115: 0 | C115: 0 | D115: 0 | E115: 0 | F115: 0 | G115: 11 | H115: 0 | I115: 0 | J115: 0 | K115: 0 | L115: 0 | M115: 0 | N115: 1 | O115: 13 | P115: 0 | Q115: 0 | S115: Reduced Movement Total | T115: =T114*(1-AO114) -> 9.25 | U115: =(T114*(1-$AO114))+U114+V114 -> 14.25 | X115: =X114+Y114+Z114 -> 802 | AB115: =AB114*(1-AU114) -> 3.6 | AC115: =(AB114*(1-$AO114))+AC114+AD114 -> 26.25 | AF115: =AF114+AG114+AH114 -> 749
A116: 15:00:00 | B116: 0 | C116: 0 | D116: 0 | E116: 0 | F116: 0 | G116: 0 | H116: 0 | I116: 0 | J116: 0 | K116: 0 | L116: 0 | M116: 0 | N116: 0 | O116: 0 | P116: 0 | Q116: 0 | S116: 15:00:00 | T116: =SUM(B114:B116) -> 8 | U116: 1 | V116: 4 | W116: 0 | X116: 3 | Y116: 231 | Z116: 3 | AA116: 0 | AB116: 2 | AC116: 0 | AD116: 8 | AE116: 0 | AF116: 3 | AG116: 180 | AH116: 6 | AI116: 0
A117: 15:15:00 | B117: 7 | C117: 0 | D117: 5 | E117: 0 | F117: 7 | G117: 199 | H117: 4 | I117: 0 | J117: 0 | K117: 0 | L117: 5 | M117: 0 | N117: 4 | O117: 164 | P117: 5 | Q117: 0
A118: 15:15:00 | B118: 0 | C118: 0 | D118: 0 | E118: 0 | F118: 0 | G118: 16 | H118: 0 | I118: 0 | J118: 0 | K118: 0 | L118: 1 | M118: 0 | N118: 0 | O118: 13 | P118: 0 | Q118: 0
A119: 15:15:00 | B119: 0 | C119: 0 | D119: 0 | E119: 0 | F119: 0 | G119: 0 | H119: 0 | I119: 0 | J119: 0 | K119: 0 | L119: 0 | M119: 0 | N119: 0 | O119: 0 | P119: 0 | Q119: 0 | S119: 15:15:00 | T119: =SUM(B117:B119) -> 7 | U119: 0 | V119: 5 | W119: 0 | X119: 7 | Y119: 215 | Z119: 4 | AA119: 0 | AB119: 0 | AC119: 0 | AD119: 6 | AE119: 0 | AF119: 4 | AG119: 177 | AH119: 5 | AI119: 0
A120: 15:30:00 | B120: 8 | C120: 0 | D120: 5 | E120: 0 | F120: 5 | G120: 362 | H120: 1 | I120: 0 | J120: 1 | K120: 0 | L120: 3 | M120: 0 | N120: 8 | O120: 149 | P120: 5 | Q120: 0
A121: 15:30:00 | B121: 0 | C121: 0 | D121: 0 | E121: 0 | F121: 0 | G121: 10 | H121: 0 | I121: 0 | J121: 0 | K121: 0 | L121: 0 | M121: 0 | N121: 0 | O121: 10 | P121: 0 | Q121: 0
A122: 15:30:00 | B122: 0 | C122: 0 | D122: 0 | E122: 0 | F122: 0 | G122: 0 | H122: 0 | I122: 0 | J122: 0 | K122: 0 | L122: 0 | M122: 0 | N122: 0 | O122: 0 | P122: 0 | Q122: 0 | S122: 15:30:00 | T122: =SUM(B120:B122) -> 8 | U122: 0 | V122: 5 | W122: 0 | X122: 5 | Y122: 372 | Z122: 1 | AA122: 0 | AB122: 1 | AC122: 0 | AD122: 3 | AE122: 0 | AF122: 8 | AG122: 159 | AH122: 5 | AI122: 0
A123: 15:45:00 | B123: 8 | C123: 0 | D123: 3 | E123: 0 | F123: 7 | G123: 247 | H123: 4 | I123: 0 | J123: 0 | K123: 0 | L123: 8 | M123: 0 | N123: 9 | O123: 167 | P123: 7 | Q123: 0
A124: 15:45:00 | B124: 0 | C124: 0 | D124: 0 | E124: 0 | F124: 0 | G124: 15 | H124: 0 | I124: 0 | J124: 0 | K124: 0 | L124: 0 | M124: 0 | N124: 0 | O124: 11 | P124: 0 | Q124: 0
A125: 15:45:00 | B125: 0 | C125: 0 | D125: 0 | E125: 0 | F125: 0 | G125: 0 | H125: 0 | I125: 0 | J125: 0 | K125: 0 | L125: 0 | M125: 0 | N125: 0 | O125: 0 | P125: 0 | Q125: 0 | S125: 15:45:00 | T125: =SUM(B123:B125) -> 8 | U125: 0 | V125: 3 | W125: 0 | X125: 7 | Y125: 262 | Z125: 4 | AA125: 0 | AB125: 0 | AC125: 0 | AD125: 8 | AE125: 0 | AF125: 9 | AG125: 178 | AH125: 7 | AI125: 0
A126: 16:00:00 | B126: 10 | C126: 1 | D126: 0 | E126: 0 | F126: 6 | G126: 250 | H126: 0 | I126: 0 | J126: 1 | K126: 0 | L126: 7 | M126: 0 | N126: 6 | O126: 155 | P126: 5 | Q126: 0 | S126: Movement Total | T126: =SUM(T116,T119,T122,T125) -> 31 | U126: 1 | V126: 17 | W126: 0 | X126: 22 | Y126: 1080 | Z126: 12 | AA126: 0 | AB126: 3 | AC126: 0 | AD126: 25 | AE126: 0 | AF126: 24 | AG126: 694 | AH126: 23 | AI126: 0 | AK126: 0.75 | AL126: - | AM126: =IF(X$2=FALSE,LOOKUP((Y126+X126)/$AM$4,'Main Line Reduction Table'!$A$1:$B$21,'Main Line Reduction Table'!$C$1:$C$21),LOOKUP(Y126/$AM$4,'Main Line Reduction Table'!$A$1:$B$21,'Main Line Reduction Table'!$C$1:$C$21)) -> 0.1 | AN126: = | AO126: =AK126-AM126 -> 0.65 | AQ126: 0.6 | AR126: - | AS126: =IF(AF$2=FALSE,LOOKUP((AG126+AF126)/$AS$4,'Main Line Reduction Table'!$A$1:$B$21,'Main Line Reduction Table'!$C$1:$C$21),LOOKUP(AG126/$AS$4,'Main Line Reduction Table'!$A$1:$B$21,'Main Line Reduction Table'!$C$1:$C$21)) -> 0 | AT126: = | AU126: =AQ126-AS126 -> 0.6
A127: 16:00:00 | B127: 0 | C127: 0 | D127: 0 | E127: 0 | F127: 0 | G127: 10 | H127: 0 | I127: 0 | J127: 0 | K127: 0 | L127: 0 | M127: 0 | N127: 0 | O127: 10 | P127: 0 | Q127: 0 | S127: Reduced Movement Total | T127: =T126*(1-AO126) -> 10.85 | U127: =(T126*(1-$AO126))+U126+V126 -> 28.85 | X127: =X126+Y126+Z126 -> 1114 | AB127: =AB126*(1-AU126) -> 1.2 | AC127: =(AB126*(1-$AO126))+AC126+AD126 -> 26.05 | AF127: =AF126+AG126+AH126 -> 741
A128: 16:00:00 | B128: 0 | C128: 0 | D128: 0 | E128: 0 | F128: 0 | G128: 0 | H128: 0 | I128: 0 | J128: 0 | K128: 0 | L128: 0 | M128: 0 | N128: 0 | O128: 0 | P128: 0 | Q128: 0 | S128: 16:00:00 | T128: =SUM(B126:B128) -> 10 | U128: 1 | V128: 0 | W128: 0 | X128: 6 | Y128: 260 | Z128: 0 | AA128: 0 | AB128: 1 | AC128: 0 | AD128: 7 | AE128: 0 | AF128: 6 | AG128: 165 | AH128: 5 | AI128: 0
A129: 16:15:00 | B129: 8 | C129: 0 | D129: 5 | E129: 0 | F129: 3 | G129: 206 | H129: 2 | I129: 0 | J129: 2 | K129: 2 | L129: 2 | M129: 0 | N129: 8 | O129: 160 | P129: 9 | Q129: 0
A130: 16:15:00 | B130: 0 | C130: 0 | D130: 0 | E130: 0 | F130: 0 | G130: 8 | H130: 0 | I130: 0 | J130: 0 | K130: 0 | L130: 0 | M130: 0 | N130: 0 | O130: 5 | P130: 0 | Q130: 0
A131: 16:15:00 | B131: 0 | C131: 0 | D131: 0 | E131: 0 | F131: 0 | G131: 0 | H131: 0 | I131: 0 | J131: 0 | K131: 0 | L131: 0 | M131: 0 | N131: 0 | O131: 0 | P131: 0 | Q131: 0 | S131: 16:15:00 | T131: =SUM(B129:B131) -> 8 | U131: 0 | V131: 5 | W131: 0 | X131: 3 | Y131: 214 | Z131: 2 | AA131: 0 | AB131: 2 | AC131: 2 | AD131: 2 | AE131: 0 | AF131: 8 | AG131: 165 | AH131: 9 | AI131: 0
A132: 16:30:00 | B132: 11 | C132: 0 | D132: 3 | E132: 0 | F132: 3 | G132: 251 | H132: 3 | I132: 0 | J132: 2 | K132: 1 | L132: 6 | M132: 0 | N132: 7 | O132: 143 | P132: 10 | Q132: 0
A133: 16:30:00 | B133: 0 | C133: 0 | D133: 0 | E133: 0 | F133: 0 | G133: 8 | H133: 0 | I133: 0 | J133: 0 | K133: 0 | L133: 0 | M133: 0 | N133: 0 | O133: 12 | P133: 0 | Q133: 0
A134: 16:30:00 | B134: 0 | C134: 0 | D134: 0 | E134: 0 | F134: 0 | G134: 0 | H134: 0 | I134: 0 | J134: 0 | K134: 0 | L134: 0 | M134: 0 | N134: 0 | O134: 0 | P134: 0 | Q134: 0 | S134: 16:30:00 | T134: =SUM(B132:B134) -> 11 | U134: 0 | V134: 3 | W134: 0 | X134: 3 | Y134: 259 | Z134: 3 | AA134: 0 | AB134: 2 | AC134: 1 | AD134: 6 | AE134: 0 | AF134: 7 | AG134: 155 | AH134: 10 | AI134: 0
A135: 16:45:00 | B135: 11 | C135: 0 | D135: 10 | E135: 0 | F135: 5 | G135: 234 | H135: 3 | I135: 0 | J135: 1 | K135: 0 | L135: 2 | M135: 0 | N135: 7 | O135: 145 | P135: 7 | Q135: 0
A136: 16:45:00 | B136: 0 | C136: 0 | D136: 0 | E136: 0 | F136: 0 | G136: 10 | H136: 0 | I136: 0 | J136: 0 | K136: 0 | L136: 0 | M136: 0 | N136: 0 | O136: 6 | P136: 0 | Q136: 0
A137: 16:45:00 | B137: 0 | C137: 0 | D137: 0 | E137: 0 | F137: 0 | G137: 0 | H137: 0 | I137: 0 | J137: 0 | K137: 0 | L137: 0 | M137: 0 | N137: 0 | O137: 0 | P137: 0 | Q137: 0 | S137: 16:45:00 | T137: =SUM(B135:B137) -> 11 | U137: 0 | V137: 10 | W137: 0 | X137: 5 | Y137: 244 | Z137: 3 | AA137: 0 | AB137: 1 | AC137: 0 | AD137: 2 | AE137: 0 | AF137: 7 | AG137: 151 | AH137: 7 | AI137: 0
A138: 17:00:00 | B138: 9 | C138: 0 | D138: 2 | E138: 0 | F138: 5 | G138: 259 | H138: 3 | I138: 0 | J138: 1 | K138: 0 | L138: 2 | M138: 0 | N138: 12 | O138: 180 | P138: 9 | Q138: 0 | S138: Movement Total | T138: =SUM(T128,T131,T134,T137) -> 40 | U138: 1 | V138: 18 | W138: 0 | X138: 17 | Y138: 977 | Z138: 8 | AA138: 0 | AB138: 6 | AC138: 3 | AD138: 17 | AE138: 0 | AF138: 28 | AG138: 636 | AH138: 31 | AI138: 0 | AK138: 0.75 | AL138: - | AM138: =IF(X$2=FALSE,LOOKUP((Y138+X138)/$AM$4,'Main Line Reduction Table'!$A$1:$B$21,'Main Line Reduction Table'!$C$1:$C$21),LOOKUP(Y138/$AM$4,'Main Line Reduction Table'!$A$1:$B$21,'Main Line Reduction Table'!$C$1:$C$21)) -> 0.05 | AN138: = | AO138: =AK138-AM138 -> 0.7 | AQ138: 0.6 | AR138: - | AS138: =IF(AF$2=FALSE,LOOKUP((AG138+AF138)/$AS$4,'Main Line Reduction Table'!$A$1:$B$21,'Main Line Reduction Table'!$C$1:$C$21),LOOKUP(AG138/$AS$4,'Main Line Reduction Table'!$A$1:$B$21,'Main Line Reduction Table'!$C$1:$C$21)) -> 0 | AT138: = | AU138: =AQ138-AS138 -> 0.6
A139: 17:00:00 | B139: 0 | C139: 0 | D139: 0 | E139: 0 | F139: 1 | G139: 4 | H139: 0 | I139: 0 | J139: 0 | K139: 0 | L139: 0 | M139: 0 | N139: 0 | O139: 10 | P139: 0 | Q139: 0 | S139: Reduced Movement Total | T139: =T138*(1-AO138) -> 12 | U139: =(T138*(1-$AO138))+U138+V138 -> 31 | X139: =X138+Y138+Z138 -> 1002 | AB139: =AB138*(1-AU138) -> 2.4 | AC139: =(AB138*(1-$AO138))+AC138+AD138 -> 21.8 | AF139: =AF138+AG138+AH138 -> 695
A140: 17:00:00 | B140: 0 | C140: 0 | D140: 0 | E140: 0 | F140: 0 | G140: 0 | H140: 0 | I140: 0 | J140: 0 | K140: 0 | L140: 0 | M140: 0 | N140: 0 | O140: 0 | P140: 0 | Q140: 0 | S140: 17:00:00 | T140: =SUM(B138:B140) -> 9 | U140: 0 | V140: 2 | W140: 0 | X140: 6 | Y140: 263 | Z140: 3 | AA140: 0 | AB140: 1 | AC140: 0 | AD140: 2 | AE140: 0 | AF140: 12 | AG140: 190 | AH140: 9 | AI140: 0
A141: 17:15:00 | B141: 6 | C141: 0 | D141: 3 | E141: 0 | F141: 2 | G141: 196 | H141: 4 | I141: 0 | J141: 1 | K141: 0 | L141: 11 | M141: 0 | N141: 1 | O141: 162 | P141: 4 | Q141: 0
A142: 17:15:00 | B142: 0 | C142: 0 | D142: 0 | E142: 0 | F142: 0 | G142: 6 | H142: 0 | I142: 0 | J142: 0 | K142: 0 | L142: 0 | M142: 0 | N142: 0 | O142: 6 | P142: 0 | Q142: 0
A143: 17:15:00 | B143: 0 | C143: 0 | D143: 0 | E143: 0 | F143: 0 | G143: 0 | H143: 0 | I143: 0 | J143: 0 | K143: 0 | L143: 0 | M143: 0 | N143: 0 | O143: 0 | P143: 0 | Q143: 0 | S143: 17:15:00 | T143: =SUM(B141:B143) -> 6 | U143: 0 | V143: 3 | W143: 0 | X143: 2 | Y143: 202 | Z143: 4 | AA143: 0 | AB143: 1 | AC143: 0 | AD143: 11 | AE143: 0 | AF143: 1 | AG143: 168 | AH143: 4 | AI143: 0
A144: 17:30:00 | B144: 1 | C144: 0 | D144: 5 | E144: 0 | F144: 1 | G144: 169 | H144: 2 | I144: 0 | J144: 3 | K144: 0 | L144: 5 | M144: 0 | N144: 5 | O144: 160 | P144: 5 | Q144: 0
A145: 17:30:00 | B145: 1 | C145: 0 | D145: 0 | E145: 0 | F145: 1 | G145: 5 | H145: 0 | I145: 0 | J145: 0 | K145: 0 | L145: 0 | M145: 0 | N145: 0 | O145: 4 | P145: 0 | Q145: 0
A146: 17:30:00 | B146: 0 | C146: 0 | D146: 0 | E146: 0 | F146: 0 | G146: 0 | H146: 0 | I146: 0 | J146: 0 | K146: 0 | L146: 0 | M146: 0 | N146: 0 | O146: 0 | P146: 0 | Q146: 0 | S146: 17:30:00 | T146: =SUM(B144:B146) -> 2 | U146: 0 | V146: 5 | W146: 0 | X146: 2 | Y146: 174 | Z146: 2 | AA146: 0 | AB146: 3 | AC146: 0 | AD146: 5 | AE146: 0 | AF146: 5 | AG146: 164 | AH146: 5 | AI146: 0
A147: 17:45:00 | B147: 4 | C147: 0 | D147: 5 | E147: 0 | F147: 4 | G147: 155 | H147: 2 | I147: 0 | J147: 1 | K147: 0 | L147: 3 | M147: 0 | N147: 4 | O147: 186 | P147: 4 | Q147: 0
A148: 17:45:00 | B148: 0 | C148: 0 | D148: 0 | E148: 0 | F148: 0 | G148: 9 | H148: 0 | I148: 0 | J148: 0 | K148: 0 | L148: 0 | M148: 0 | N148: 0 | O148: 8 | P148: 0 | Q148: 0
A149: 17:45:00 | B149: 0 | C149: 0 | D149: 0 | E149: 0 | F149: 0 | G149: 0 | H149: 0 | I149: 0 | J149: 0 | K149: 0 | L149: 0 | M149: 0 | N149: 0 | O149: 0 | P149: 0 | Q149: 0 | S149: 17:45:00 | T149: =SUM(B147:B149) -> 4 | U149: 0 | V149: 5 | W149: 0 | X149: 4 | Y149: 164 | Z149: 2 | AA149: 0 | AB149: 1 | AC149: 0 | AD149: 3 | AE149: 0 | AF149: 4 | AG149: 194 | AH149: 4 | AI149: 0
S150: Movement Total | T150: =SUM(T140,T143,T146,T149) -> 21 | U150: 0 | V150: 15 | W150: 0 | X150: 14 | Y150: 803 | Z150: 11 | AA150: 0 | AB150: 6 | AC150: 0 | AD150: 21 | AE150: 0 | AF150: 22 | AG150: 716 | AH150: 22 | AI150: 0 | AK150: 0.75 | AL150: - | AM150: =IF(X$2=FALSE,LOOKUP((Y150+X150)/$AM$4,'Main Line Reduction Table'!$A$1:$B$21,'Main Line Reduction Table'!$C$1:$C$21),LOOKUP(Y150/$AM$4,'Main Line Reduction Table'!$A$1:$B$21,'Main Line Reduction Table'!$C$1:$C$21)) -> 0.05 | AN150: = | AO150: =AK150-AM150 -> 0.7 | AQ150: 0.6 | AR150: - | AS150: =IF(AF$2=FALSE,LOOKUP((AG150+AF150)/$AS$4,'Main Line Reduction Table'!$A$1:$B$21,'Main Line Reduction Table'!$C$1:$C$21),LOOKUP(AG150/$AS$4,'Main Line Reduction Table'!$A$1:$B$21,'Main Line Reduction Table'!$C$1:$C$21)) -> 0 | AT150: = | AU150: =AQ150-AS150 -> 0.6
S151: Reduced Movement Total | T151: =T150*(1-AO150) -> 6.3 | U151: =(T150*(1-$AO150))+U150+V150 -> 21.3 | X151: =X150+Y150+Z150 -> 828 | AB151: =AB150*(1-AU150) -> 2.4 | AC151: =(AB150*(1-$AO150))+AC150+AD150 -> 22.8 | AF151: =AF150+AG150+AH150 -> 760
A366: 12:00:00 | B366: 8 | C366: 1 | D366: 26 | E366: 0 | F366: 31 | G366: 48 | H366: 2 | I366: 0 | J366: 2 | K366: 0 | L366: 0 | M366: 0 | N366: 1 | O366: 60 | P366: 9 | Q366: 0
A367: 12:00:00 | B367: 0 | C367: 0 | D367: 1 | E367: 0 | F367: 0 | G367: 0 | H367: 0 | I367: 0 | J367: 0 | K367: 1 | L367: 0 | M367: 0 | N367: 0 | O367: 2 | P367: 0 | Q367: 0
A368: 12:00:00 | B368: 0 | C368: 0 | D368: 0 | E368: 0 | F368: 0 | G368: 0 | H368: 0 | I368: 0 | J368: 0 | K368: 0 | L368: 0 | M368: 0 | N368: 0 | O368: 0 | P368: 0 | Q368: 0
A369: 12:15:00 | B369: 10 | C369: 0 | D369: 28 | E369: 0 | F369: 33 | G369: 45 | H369: 1 | I369: 0 | J369: 5 | K369: 1 | L369: 0 | M369: 0 | N369: 0 | O369: 41 | P369: 12 | Q369: 0
A370: 12:15:00 | B370: 0 | C370: 0 | D370: 0 | E370: 0 | F370: 0 | G370: 1 | H370: 0 | I370: 0 | J370: 0 | K370: 1 | L370: 0 | M370: 0 | N370: 0 | O370: 1 | P370: 0 | Q370: 0
A371: 12:15:00 | B371: 0 | C371: 0 | D371: 0 | E371: 0 | F371: 0 | G371: 0 | H371: 0 | I371: 0 | J371: 0 | K371: 0 | L371: 0 | M371: 0 | N371: 0 | O371: 0 | P371: 0 | Q371: 0
A372: 12:30:00 | B372: 5 | C372: 0 | D372: 29 | E372: 0 | F372: 26 | G372: 41 | H372: 4 | I372: 0 | J372: 6 | K372: 0 | L372: 0 | M372: 0 | N372: 0 | O372: 44 | P372: 6 | Q372: 0
A373: 12:30:00 | B373: 2 | C373: 0 | D373: 1 | E373: 0 | F373: 2 | G373: 0 | H373: 0 | I373: 0 | J373: 0 | K373: 0 | L373: 0 | M373: 0 | N373: 0 | O373: 3 | P373: 0 | Q373: 0
A374: 12:30:00 | B374: 0 | C374: 0 | D374: 0 | E374: 0 | F374: 0 | G374: 0 | H374: 0 | I374: 0 | J374: 0 | K374: 0 | L374: 0 | M374: 0 | N374: 0 | O374: 0 | P374: 0 | Q374: 0
A375: 12:45:00 | B375: 6 | C375: 0 | D375: 36 | E375: 0 | F375: 33 | G375: 42 | H375: 6 | I375: 0 | J375: 1 | K375: 2 | L375: 1 | M375: 0 | N375: 3 | O375: 53 | P375: 13 | Q375: 0
A376: 12:45:00 | B376: 0 | C376: 0 | D376: 2 | E376: 0 | F376: 0 | G376: 2 | H376: 0 | I376: 0 | J376: 0 | K376: 0 | L376: 0 | M376: 0 | N376: 0 | O376: 0 | P376: 0 | Q376: 0
A377: 12:45:00 | B377: 0 | C377: 0 | D377: 0 | E377: 0 | F377: 0 | G377: 0 | H377: 0 | I377: 0 | J377: 0 | K377: 0 | L377: 0 | M377: 0 | N377: 0 | O377: 0 | P377: 0 | Q377: 0
A378: 13:00:00 | B378: 9 | C378: 2 | D378: 27 | E378: 0 | F378: 32 | G378: 37 | H378: 1 | I378: 0 | J378: 2 | K378: 3 | L378: 0 | M378: 0 | N378: 0 | O378: 56 | P378: 11 | Q378: 0
A379: 13:00:00 | B379: 1 | C379: 0 | D379: 0 | E379: 0 | F379: 2 | G379: 0 | H379: 0 | I379: 0 | J379: 0 | K379: 0 | L379: 0 | M379: 0 | N379: 0 | O379: 2 | P379: 0 | Q379: 0
A380: 13:00:00 | B380: 0 | C380: 0 | D380: 0 | E380: 0 | F380: 0 | G380: 0 | H380: 0 | I380: 0 | J380: 0 | K380: 0 | L380: 0 | M380: 0 | N380: 0 | O380: 0 | P380: 0 | Q380: 0
A381: 13:15:00 | B381: 7 | C381: 1 | D381: 25 | E381: 0 | F381: 44 | G381: 44 | H381: 4 | I381: 0 | J381: 0 | K381: 1 | L381: 1 | M381: 0 | N381: 0 | O381: 53 | P381: 6 | Q381: 0
A382: 13:15:00 | B382: 0 | C382: 0 | D382: 0 | E382: 0 | F382: 1 | G382: 1 | H382: 0 | I382: 0 | J382: 0 | K382: 0 | L382: 0 | M382: 0 | N382: 0 | O382: 2 | P382: 0 | Q382: 0
A383: 13:15:00 | B383: 0 | C383: 0 | D383: 0 | E383: 0 | F383: 0 | G383: 0 | H383: 0 | I383: 0 | J383: 0 | K383: 0 | L383: 0 | M383: 0 | N383: 0 | O383: 0 | P383: 0 | Q383: 0
A384: 13:30:00 | B384: 12 | C384: 3 | D384: 36 | E384: 0 | F384: 30 | G384: 41 | H384: 0 | I384: 0 | J384: 5 | K384: 1 | L384: 0 | M384: 0 | N384: 0 | O384: 43 | P384: 12 | Q384: 0
A385: 13:30:00 | B385: 0 | C385: 0 | D385: 1 | E385: 0 | F385: 1 | G385: 1 | H385: 0 | I385: 0 | J385: 0 | K385: 1 | L385: 0 | M385: 0 | N385: 1 | O385: 2 | P385: 0 | Q385: 0
A386: 13:30:00 | B386: 0 | C386: 0 | D386: 0 | E386: 0 | F386: 0 | G386: 0 | H386: 0 | I386: 0 | J386: 0 | K386: 0 | L386: 0 | M386: 0 | N386: 0 | O386: 0 | P386: 0 | Q386: 0
A387: 13:45:00 | B387: 9 | C387: 1 | D387: 30 | E387: 0 | F387: 23 | G387: 55 | H387: 1 | I387: 0 | J387: 1 | K387: 0 | L387: 0 | M387: 0 | N387: 0 | O387: 52 | P387: 10 | Q387: 0
A388: 13:45:00 | B388: 0 | C388: 0 | D388: 0 | E388: 0 | F388: 1 | G388: 4 | H388: 0 | I388: 0 | J388: 0 | K388: 0 | L388: 0 | M388: 0 | N388: 0 | O388: 0 | P388: 0 | Q388: 0
A389: 13:45:00 | B389: 0 | C389: 0 | D389: 0 | E389: 0 | F389: 0 | G389: 0 | H389: 0 | I389: 0 | J389: 0 | K389: 0 | L389: 0 | M389: 0 | N389: 0 | O389: 0 | P389: 0 | Q389: 0
A390: 14:00:00 | B390: 12 | C390: 1 | D390: 27 | E390: 0 | F390: 50 | G390: 68 | H390: 1 | I390: 0 | J390: 5 | K390: 1 | L390: 0 | M390: 0 | N390: 0 | O390: 64 | P390: 4 | Q390: 0
A391: 14:00:00 | B391: 0 | C391: 0 | D391: 1 | E391: 0 | F391: 1 | G391: 2 | H391: 0 | I391: 0 | J391: 0 | K391: 0 | L391: 0 | M391: 0 | N391: 0 | O391: 2 | P391: 1 | Q391: 0
A392: 14:00:00 | B392: 0 | C392: 0 | D392: 0 | E392: 0 | F392: 0 | G392: 0 | H392: 0 | I392: 0 | J392: 0 | K392: 0 | L392: 0 | M392: 0 | N392: 0 | O392: 0 | P392: 0 | Q392: 0
A393: 14:15:00 | B393: 8 | C393: 1 | D393: 28 | E393: 0 | F393: 41 | G393: 65 | H393: 0 | I393: 0 | J393: 5 | K393: 2 | L393: 1 | M393: 0 | N393: 0 | O393: 50 | P393: 7 | Q393: 0
A394: 14:15:00 | B394: 0 | C394: 0 | D394: 0 | E394: 0 | F394: 1 | G394: 1 | H394: 0 | I394: 0 | J394: 0 | K394: 2 | L394: 0 | M394: 0 | N394: 0 | O394: 1 | P394: 1 | Q394: 0
A395: 14:15:00 | B395: 0 | C395: 0 | D395: 0 | E395: 0 | F395: 0 | G395: 0 | H395: 0 | I395: 0 | J395: 0 | K395: 0 | L395: 0 | M395: 0 | N395: 0 | O395: 0 | P395: 0 | Q395: 0
A396: 14:30:00 | B396: 16 | C396: 3 | D396: 31 | E396: 0 | F396: 45 | G396: 48 | H396: 4 | I396: 0 | J396: 0 | K396: 2 | L396: 0 | M396: 0 | N396: 0 | O396: 67 | P396: 10 | Q396: 0
A397: 14:30:00 | B397: 1 | C397: 0 | D397: 0 | E397: 0 | F397: 0 | G397: 1 | H397: 0 | I397: 0 | J397: 0 | K397: 0 | L397: 0 | M397: 0 | N397: 0 | O397: 2 | P397: 0 | Q397: 0
A398: 14:30:00 | B398: 0 | C398: 0 | D398: 0 | E398: 0 | F398: 0 | G398: 0 | H398: 0 | I398: 0 | J398: 0 | K398: 0 | L398: 0 | M398: 0 | N398: 0 | O398: 0 | P398: 0 | Q398: 0
A399: 14:45:00 | B399: 16 | C399: 1 | D399: 30 | E399: 0 | F399: 56 | G399: 62 | H399: 3 | I399: 0 | J399: 2 | K399: 1 | L399: 1 | M399: 0 | N399: 0 | O399: 52 | P399: 12 | Q399: 0
A400: 14:45:00 | B400: 1 | C400: 2 | D400: 2 | E400: 0 | F400: 1 | G400: 1 | H400: 1 | I400: 0 | J400: 1 | K400: 0 | L400: 0 | M400: 0 | N400: 0 | O400: 0 | P400: 0 | Q400: 0
A401: 14:45:00 | B401: 0 | C401: 0 | D401: 0 | E401: 0 | F401: 0 | G401: 0 | H401: 0 | I401: 0 | J401: 0 | K401: 0 | L401: 0 | M401: 0 | N401: 0 | O401: 0 | P401: 0 | Q401: 0
A402: 15:00:00 | B402: 18 | C402: 1 | D402: 43 | E402: 0 | F402: 73 | G402: 94 | H402: 3 | I402: 0 | J402: 6 | K402: 1 | L402: 0 | M402: 0 | N402: 1 | O402: 38 | P402: 9 | Q402: 0
A403: 15:00:00 | B403: 1 | C403: 0 | D403: 2 | E403: 0 | F403: 1 | G403: 1 | H403: 0 | I403: 0 | J403: 0 | K403: 1 | L403: 0 | M403: 0 | N403: 0 | O403: 4 | P403: 1 | Q403: 0
A404: 15:00:00 | B404: 0 | C404: 0 | D404: 0 | E404: 0 | F404: 0 | G404: 0 | H404: 0 | I404: 0 | J404: 0 | K404: 0 | L404: 0 | M404: 0 | N404: 0 | O404: 0 | P404: 0 | Q404: 0
A405: 15:15:00 | B405: 14 | C405: 1 | D405: 30 | E405: 0 | F405: 61 | G405: 79 | H405: 5 | I405: 0 | J405: 2 | K405: 0 | L405: 0 | M405: 0 | N405: 0 | O405: 52 | P405: 7 | Q405: 0
A406: 15:15:00 | B406: 0 | C406: 0 | D406: 2 | E406: 0 | F406: 0 | G406: 2 | H406: 1 | I406: 0 | J406: 0 | K406: 1 | L406: 0 | M406: 0 | N406: 0 | O406: 3 | P406: 0 | Q406: 0
A407: 15:15:00 | B407: 0 | C407: 0 | D407: 0 | E407: 0 | F407: 0 | G407: 0 | H407: 0 | I407: 0 | J407: 0 | K407: 0 | L407: 0 | M407: 0 | N407: 0 | O407: 0 | P407: 0 | Q407: 0
A408: 15:30:00 | B408: 16 | C408: 1 | D408: 32 | E408: 0 | F408: 64 | G408: 107 | H408: 1 | I408: 0 | J408: 1 | K408: 0 | L408: 0 | M408: 0 | N408: 0 | O408: 54 | P408: 10 | Q408: 0
A409: 15:30:00 | B409: 0 | C409: 0 | D409: 4 | E409: 0 | F409: 1 | G409: 3 | H409: 0 | I409: 0 | J409: 0 | K409: 0 | L409: 0 | M409: 0 | N409: 0 | O409: 1 | P409: 3 | Q409: 0
A410: 15:30:00 | B410: 0 | C410: 0 | D410: 0 | E410: 0 | F410: 0 | G410: 0 | H410: 0 | I410: 0 | J410: 0 | K410: 0 | L410: 0 | M410: 0 | N410: 0 | O410: 0 | P410: 0 | Q410: 0
A411: 15:45:00 | B411: 12 | C411: 1 | D411: 32 | E411: 0 | F411: 65 | G411: 94 | H411: 8 | I411: 0 | J411: 4 | K411: 1 | L411: 1 | M411: 0 | N411: 0 | O411: 47 | P411: 17 | Q411: 0
A412: 15:45:00 | B412: 0 | C412: 0 | D412: 0 | E412: 0 | F412: 1 | G412: 1 | H412: 0 | I412: 0 | J412: 0 | K412: 0 | L412: 0 | M412: 0 | N412: 0 | O412: 2 | P412: 1 | Q412: 0
A413: 15:45:00 | B413: 0 | C413: 0 | D413: 0 | E413: 0 | F413: 0 | G413: 0 | H413: 0 | I413: 0 | J413: 0 | K413: 0 | L413: 0 | M413: 0 | N413: 0 | O413: 0 | P413: 0 | Q413: 0
A414: 16:00:00 | B414: 19 | C414: 2 | D414: 49 | E414: 0 | F414: 66 | G414: 104 | H414: 2 | I414: 0 | J414: 5 | K414: 1 | L414: 0 | M414: 0 | N414: 0 | O414: 55 | P414: 15 | Q414: 0
... 23 more rows

Sheet HCS+ for N-S Mainline
A1: Data Formatted for HCS+ Warrants for a North/South Major Street
D2: ='Traffic Count'!T3 -> #1 | G2: ='Traffic Count'!AB3 -> #3 | J2: ='Traffic Count'!AF3 -> #4 | M2: ='Traffic Count'!X3 -> #2
D3: ='Traffic Count'!T4 -> TRACTOR SUPPLY ENTRANCE--Eastbound | G3: ='Traffic Count'!AB4 -> ALDI ENTRANCE--Westbound | J3: ='Traffic Count'!AF4 -> SR 159--Northbound | M3: ='Traffic Count'!X4 -> SR 159--Southbound
D4: Left | E4: Thru | F4: Right | G4: Left | H4: Thru | I4: Right | J4: Left | K4: Thru | L4: Right | M4: Left | N4: Thru | O4: Right
A5: ='Traffic Count'!S8 -> 06:00:00 | B5: - | C5: =A5+TIME(1,0,0) -> 07:00:00 | D5: ='Traffic Count'!V18 -> 0 | E5: ='Traffic Count'!U18 -> 0 | F5: ='Traffic Count'!T19 -> 0.25 | G5: ='Traffic Count'!AD18 -> 0 | H5: ='Traffic Count'!AC18 -> 0 | I5: ='Traffic Count'!AB19 -> 0 | J5: ='Traffic Count'!AH18 -> 4 | K5: ='Traffic Count'!AG18 -> 576 | L5: ='Traffic Count'!AF18 -> 0 | M5: ='Traffic Count'!Z18 -> 0 | N5: ='Traffic Count'!Y18 -> 282 | O5: ='Traffic Count'!X18 -> 0
A6: ='Traffic Count'!S20 -> 07:00:00 | B6: - | C6: =A6+TIME(1,0,0) -> 08:00:00 | D6: ='Traffic Count'!V30 -> 2 | E6: ='Traffic Count'!U30 -> 1 | F6: ='Traffic Count'!T31 -> 0.75 | G6: ='Traffic Count'!AD30 -> 0 | H6: ='Traffic Count'!AC30 -> 0 | I6: ='Traffic Count'!AB31 -> 0 | J6: ='Traffic Count'!AH30 -> 7 | K6: ='Traffic Count'!AG30 -> 487 | L6: ='Traffic Count'!AF30 -> 0 | M6: ='Traffic Count'!Z30 -> 0 | N6: ='Traffic Count'!Y30 -> 543 | O6: ='Traffic Count'!X30 -> 5
A7: ='Traffic Count'!S32 -> 08:00:00 | B7: - | C7: =A7+TIME(1,0,0) -> 09:00:00 | D7: ='Traffic Count'!V42 -> 4 | E7: ='Traffic Count'!U42 -> 0 | F7: ='Traffic Count'!T43 -> 3.5 | G7: ='Traffic Count'!AD42 -> 2 | H7: ='Traffic Count'!AC42 -> 1 | I7: ='Traffic Count'!AB43 -> 0 | J7: ='Traffic Count'!AH42 -> 11 | K7: ='Traffic Count'!AG42 -> 446 | L7: ='Traffic Count'!AF42 -> 2 | M7: ='Traffic Count'!Z42 -> 1 | N7: ='Traffic Count'!Y42 -> 610 | O7: ='Traffic Count'!X42 -> 9
A8: ='Traffic Count'!S44 -> 09:00:00 | B8: - | C8: 10:00:00 | D8: ='Traffic Count'!V54 -> 9 | E8: ='Traffic Count'!U54 -> 1 | F8: ='Traffic Count'!T55 -> 5 | G8: ='Traffic Count'!AD54 -> 9 | H8: ='Traffic Count'!AC54 -> 0 | I8: ='Traffic Count'!AB55 -> 0.8 | J8: ='Traffic Count'!AH54 -> 18 | K8: ='Traffic Count'!AG54 -> 458 | L8: ='Traffic Count'!AF54 -> 12 | M8: ='Traffic Count'!Z54 -> 7 | N8: ='Traffic Count'!Y54 -> 634 | O8: ='Traffic Count'!X54 -> 12
A9: ='Traffic Count'!S56 -> 10:00:00 | B9: - | C9: 11:00:00 | D9: ='Traffic Count'!V66 -> 7 | E9: ='Traffic Count'!U66 -> 1 | F9: ='Traffic Count'!T67 -> 8.25 | G9: ='Traffic Count'!AD66 -> 17 | H9: ='Traffic Count'!AC66 -> 1 | I9: ='Traffic Count'!AB67 -> 3.6 | J9: ='Traffic Count'!AH66 -> 30 | K9: ='Traffic Count'!AG66 -> 544 | L9: ='Traffic Count'!AF66 -> 29 | M9: ='Traffic Count'!Z66 -> 7 | N9: ='Traffic Count'!Y66 -> 681 | O9: ='Traffic Count'!X66 -> 15
A10: ='Traffic Count'!S68 -> 11:00:00 | B10: - | C10: 12:00:00 | D10: ='Traffic Count'!V78 -> 11 | E10: ='Traffic Count'!U78 -> 0 | F10: ='Traffic Count'!T79 -> 11.7 | G10: ='Traffic Count'!AD78 -> 23 | H10: ='Traffic Count'!AC78 -> 1 | I10: ='Traffic Count'!AB79 -> 1.2 | J10: ='Traffic Count'!AH78 -> 33 | K10: ='Traffic Count'!AG78 -> 656 | L10: ='Traffic Count'!AF78 -> 32 | M10: ='Traffic Count'!Z78 -> 3 | N10: ='Traffic Count'!Y78 -> 936 | O10: ='Traffic Count'!X78 -> 17
A11: ='Traffic Count'!S80 -> 12:00:00 | B11: - | C11: 13:00:00 | D11: ='Traffic Count'!V90 -> 7 | E11: ='Traffic Count'!U90 -> 1 | F11: ='Traffic Count'!T91 -> 15.6 | G11: ='Traffic Count'!AD90 -> 15 | H11: ='Traffic Count'!AC90 -> 1 | I11: ='Traffic Count'!AB91 -> 2 | J11: ='Traffic Count'!AH90 -> 38 | K11: ='Traffic Count'!AG90 -> 729 | L11: ='Traffic Count'!AF90 -> 26 | M11: ='Traffic Count'!Z90 -> 8 | N11: ='Traffic Count'!Y90 -> 789 | O11: ='Traffic Count'!X90 -> 24
A12: ='Traffic Count'!S92 -> 13:00:00 | B12: - | C12: 14:00:00 | D12: ='Traffic Count'!V102 -> 12 | E12: ='Traffic Count'!U102 -> 3 | F12: ='Traffic Count'!T103 -> 12.75 | G12: ='Traffic Count'!AD102 -> 23 | H12: ='Traffic Count'!AC102 -> 1 | I12: ='Traffic Count'!AB103 -> 1.2 | J12: ='Traffic Count'!AH102 -> 30 | K12: ='Traffic Count'!AG102 -> 647 | L12: ='Traffic Count'!AF102 -> 26 | M12: ='Traffic Count'!Z102 -> 6 | N12: ='Traffic Count'!Y102 -> 705 | O12: ='Traffic Count'!X102 -> 27
A13: ='Traffic Count'!S104 -> 14:00:00 | B13: - | C13: 15:00:00 | D13: ='Traffic Count'!V114 -> 5 | E13: ='Traffic Count'!U114 -> 0 | F13: ='Traffic Count'!T115 -> 9.25 | G13: ='Traffic Count'!AD114 -> 22 | H13: ='Traffic Count'!AC114 -> 2 | I13: ='Traffic Count'!AB115 -> 3.6 | J13: ='Traffic Count'!AH114 -> 24 | K13: ='Traffic Count'!AG114 -> 696 | L13: ='Traffic Count'!AF114 -> 29 | M13: ='Traffic Count'!Z114 -> 10 | N13: ='Traffic Count'!Y114 -> 774 | O13: ='Traffic Count'!X114 -> 18
A14: ='Traffic Count'!S116 -> 15:00:00 | B14: - | C14: 16:00:00 | D14: ='Traffic Count'!V126 -> 17 | E14: ='Traffic Count'!U126 -> 1 | F14: ='Traffic Count'!T127 -> 10.85 | G14: ='Traffic Count'!AD126 -> 25 | H14: ='Traffic Count'!AC126 -> 0 | I14: ='Traffic Count'!AB127 -> 1.2 | J14: ='Traffic Count'!AH126 -> 23 | K14: ='Traffic Count'!AG126 -> 694 | L14: ='Traffic Count'!AF126 -> 24 | M14: ='Traffic Count'!Z126 -> 12 | N14: ='Traffic Count'!Y126 -> 1080 | O14: ='Traffic Count'!X126 -> 22
A15: ='Traffic Count'!S128 -> 16:00:00 | B15: - | C15: 17:00:00 | D15: ='Traffic Count'!V138 -> 18 | E15: ='Traffic Count'!U138 -> 1 | F15: ='Traffic Count'!T139 -> 12 | G15: ='Traffic Count'!AD138 -> 17 | H15: ='Traffic Count'!AC138 -> 3 | I15: ='Traffic Count'!AB139 -> 2.4 | J15: ='Traffic Count'!AH138 -> 31 | K15: ='Traffic Count'!AG138 -> 636 | L15: ='Traffic Count'!AF138 -> 28 | M15: ='Traffic Count'!Z138 -> 8 | N15: ='Traffic Count'!Y138 -> 977 | O15: ='Traffic Count'!X138 -> 17
A16: ='Traffic Count'!S140 -> 17:00:00 | B16: - | C16: 18:00:00 | D16: ='Traffic Count'!V150 -> 15 | E16: ='Traffic Count'!U150 -> 0 | F16: ='Traffic Count'!T151 -> 6.3 | G16: ='Traffic Count'!AD150 -> 21 | H16: ='Traffic Count'!AC150 -> 0 | I16: ='Traffic Count'!AB151 -> 2.4 | J16: ='Traffic Count'!AH150 -> 22 | K16: ='Traffic Count'!AG150 -> 716 | L16: ='Traffic Count'!AF150 -> 22 | M16: ='Traffic Count'!Z150 -> 11 | N16: ='Traffic Count'!Y150 -> 803 | O16: ='Traffic Count'!X150 -> 14

Sheet HCS+ for E-W Mainline
A1: Data Formatted for HCS+ Warrants for an East/West Major Street
D2: ='HCS+ for N-S Mainline'!J2 -> #4 | G2: ='HCS+ for N-S Mainline'!M2 -> #2 | J2: ='HCS+ for N-S Mainline'!G2 -> #3 | M2: ='HCS+ for N-S Mainline'!D2 -> #1
D3: ='Traffic Count'!AF4 -> SR 159--Northbound | G3: ='HCS+ for N-S Mainline'!M3 -> SR 159--Southbound | J3: ='HCS+ for N-S Mainline'!G3 -> ALDI ENTRANCE--Westbound | M3: ='HCS+ for N-S Mainline'!D3 -> TRACTOR SUPPLY ENTRANCE--Eastbound
D4: ='HCS+ for N-S Mainline'!J4 -> Left | E4: ='HCS+ for N-S Mainline'!K4 -> Thru | F4: ='HCS+ for N-S Mainline'!L4 -> Right | G4: ='HCS+ for N-S Mainline'!M4 -> Left | H4: ='HCS+ for N-S Mainline'!N4 -> Thru | I4: ='HCS+ for N-S Mainline'!O4 -> Right | J4: ='HCS+ for N-S Mainline'!G4 -> Left | K4: ='HCS+ for N-S Mainline'!H4 -> Thru | L4: ='HCS+ for N-S Mainline'!I4 -> Right | M4: ='HCS+ for N-S Mainline'!D4 -> Left | N4: ='HCS+ for N-S Mainline'!E4 -> Thru | O4: ='HCS+ for N-S Mainline'!F4 -> Right
A5: ='Traffic Count'!S8 -> 06:00:00 | B5: - | C5: =A5+TIME(1,0,0) -> 07:00:00 | D5: ='HCS+ for N-S Mainline'!J5 -> 4 | E5: ='HCS+ for N-S Mainline'!K5 -> 576 | F5: ='HCS+ for N-S Mainline'!L5 -> 0 | G5: ='HCS+ for N-S Mainline'!M5 -> 0 | H5: ='HCS+ for N-S Mainline'!N5 -> 282 | I5: ='HCS+ for N-S Mainline'!O5 -> 0 | J5: ='HCS+ for N-S Mainline'!G5 -> 0 | K5: ='HCS+ for N-S Mainline'!H5 -> 0 | L5: ='HCS+ for N-S Mainline'!I5 -> 0 | M5: ='HCS+ for N-S Mainline'!D5 -> 0 | N5: ='HCS+ for N-S Mainline'!E5 -> 0 | O5: ='HCS+ for N-S Mainline'!F5 -> 0.25
A6: ='Traffic Count'!S20 -> 07:00:00 | B6: - | C6: =A6+TIME(1,0,0) -> 08:00:00 | D6: ='HCS+ for N-S Mainline'!J6 -> 7 | E6: ='HCS+ for N-S Mainline'!K6 -> 487 | F6: ='HCS+ for N-S Mainline'!L6 -> 0 | G6: ='HCS+ for N-S Mainline'!M6 -> 0 | H6: ='HCS+ for N-S Mainline'!N6 -> 543 | I6: ='HCS+ for N-S Mainline'!O6 -> 5 | J6: ='HCS+ for N-S Mainline'!G6 -> 0 | K6: ='HCS+ for N-S Mainline'!H6 -> 0 | L6: ='HCS+ for N-S Mainline'!I6 -> 0 | M6: ='HCS+ for N-S Mainline'!D6 -> 2 | N6: ='HCS+ for N-S Mainline'!E6 -> 1 | O6: ='HCS+ for N-S Mainline'!F6 -> 0.75
A7: ='Traffic Count'!S32 -> 08:00:00 | B7: - | C7: =A7+TIME(1,0,0) -> 09:00:00 | D7: ='HCS+ for N-S Mainline'!J7 -> 11 | E7: ='HCS+ for N-S Mainline'!K7 -> 446 | F7: ='HCS+ for N-S Mainline'!L7 -> 2 | G7: ='HCS+ for N-S Mainline'!M7 -> 1 | H7: ='HCS+ for N-S Mainline'!N7 -> 610 | I7: ='HCS+ for N-S Mainline'!O7 -> 9 | J7: ='HCS+ for N-S Mainline'!G7 -> 2 | K7: ='HCS+ for N-S Mainline'!H7 -> 1 | L7: ='HCS+ for N-S Mainline'!I7 -> 0 | M7: ='HCS+ for N-S Mainline'!D7 -> 4 | N7: ='HCS+ for N-S Mainline'!E7 -> 0 | O7: ='HCS+ for N-S Mainline'!F7 -> 3.5
A8: ='Traffic Count'!S44 -> 09:00:00 | B8: - | C8: 10:00:00 | D8: ='HCS+ for N-S Mainline'!J8 -> 18 | E8: ='HCS+ for N-S Mainline'!K8 -> 458 | F8: ='HCS+ for N-S Mainline'!L8 -> 12 | G8: ='HCS+ for N-S Mainline'!M8 -> 7 | H8: ='HCS+ for N-S Mainline'!N8 -> 634 | I8: ='HCS+ for N-S Mainline'!O8 -> 12 | J8: ='HCS+ for N-S Mainline'!G8 -> 9 | K8: ='HCS+ for N-S Mainline'!H8 -> 0 | L8: ='HCS+ for N-S Mainline'!I8 -> 0.8 | M8: ='HCS+ for N-S Mainline'!D8 -> 9 | N8: ='HCS+ for N-S Mainline'!E8 -> 1 | O8: ='HCS+ for N-S Mainline'!F8 -> 5
A9: ='Traffic Count'!S56 -> 10:00:00 | B9: - | C9: 11:00:00 | D9: ='HCS+ for N-S Mainline'!J9 -> 30 | E9: ='HCS+ for N-S Mainline'!K9 -> 544 | F9: ='HCS+ for N-S Mainline'!L9 -> 29 | G9: ='HCS+ for N-S Mainline'!M9 -> 7 | H9: ='HCS+ for N-S Mainline'!N9 -> 681 | I9: ='HCS+ for N-S Mainline'!O9 -> 15 | J9: ='HCS+ for N-S Mainline'!G9 -> 17 | K9: ='HCS+ for N-S Mainline'!H9 -> 1 | L9: ='HCS+ for N-S Mainline'!I9 -> 3.6 | M9: ='HCS+ for N-S Mainline'!D9 -> 7 | N9: ='HCS+ for N-S Mainline'!E9 -> 1 | O9: ='HCS+ for N-S Mainline'!F9 -> 8.25
A10: ='Traffic Count'!S68 -> 11:00:00 | B10: - | C10: 12:00:00 | D10: ='HCS+ for N-S Mainline'!J10 -> 33 | E10: ='HCS+ for N-S Mainline'!K10 -> 656 | F10: ='HCS+ for N-S Mainline'!L10 -> 32 | G10: ='HCS+ for N-S Mainline'!M10 -> 3 | H10: ='HCS+ for N-S Mainline'!N10 -> 936 | I10: ='HCS+ for N-S Mainline'!O10 -> 17 | J10: ='HCS+ for N-S Mainline'!G10 -> 23 | K10: ='HCS+ for N-S Mainline'!H10 -> 1 | L10: ='HCS+ for N-S Mainline'!I10 -> 1.2 | M10: ='HCS+ for N-S Mainline'!D10 -> 11 | N10: ='HCS+ for N-S Mainline'!E10 -> 0 | O10: ='HCS+ for N-S Mainline'!F10 -> 11.7
A11: ='Traffic Count'!S80 -> 12:00:00 | B11: - | C11: 13:00:00 | D11: ='HCS+ for N-S Mainline'!J11 -> 38 | E11: ='HCS+ for N-S Mainline'!K11 -> 729 | F11: ='HCS+ for N-S Mainline'!L11 -> 26 | G11: ='HCS+ for N-S Mainline'!M11 -> 8 | H11: ='HCS+ for N-S Mainline'!N11 -> 789 | I11: ='HCS+ for N-S Mainline'!O11 -> 24 | J11: ='HCS+ for N-S Mainline'!G11 -> 15 | K11: ='HCS+ for N-S Mainline'!H11 -> 1 | L11: ='HCS+ for N-S Mainline'!I11 -> 2 | M11: ='HCS+ for N-S Mainline'!D11 -> 7 | N11: ='HCS+ for N-S Mainline'!E11 -> 1 | O11: ='HCS+ for N-S Mainline'!F11 -> 15.6
A12: ='Traffic Count'!S92 -> 13:00:00 | B12: - | C12: 14:00:00 | D12: ='HCS+ for N-S Mainline'!J12 -> 30 | E12: ='HCS+ for N-S Mainline'!K12 -> 647 | F12: ='HCS+ for N-S Mainline'!L12 -> 26 | G12: ='HCS+ for N-S Mainline'!M12 -> 6 | H12: ='HCS+ for N-S Mainline'!N12 -> 705 | I12: ='HCS+ for N-S Mainline'!O12 -> 27 | J12: ='HCS+ for N-S Mainline'!G12 -> 23 | K12: ='HCS+ for N-S Mainline'!H12 -> 1 | L12: ='HCS+ for N-S Mainline'!I12 -> 1.2 | M12: ='HCS+ for N-S Mainline'!D12 -> 12 | N12: ='HCS+ for N-S Mainline'!E12 -> 3 | O12: ='HCS+ for N-S Mainline'!F12 -> 12.75
A13: ='Traffic Count'!S104 -> 14:00:00 | B13: - | C13: 15:00:00 | D13: ='HCS+ for N-S Mainline'!J13 -> 24 | E13: ='HCS+ for N-S Mainline'!K13 -> 696 | F13: ='HCS+ for N-S Mainline'!L13 -> 29 | G13: ='HCS+ for N-S Mainline'!M13 -> 10 | H13: ='HCS+ for N-S Mainline'!N13 -> 774 | I13: ='HCS+ for N-S Mainline'!O13 -> 18 | J13: ='HCS+ for N-S Mainline'!G13 -> 22 | K13: ='HCS+ for N-S Mainline'!H13 -> 2 | L13: ='HCS+ for N-S Mainline'!I13 -> 3.6 | M13: ='HCS+ for N-S Mainline'!D13 -> 5 | N13: ='HCS+ for N-S Mainline'!E13 -> 0 | O13: ='HCS+ for N-S Mainline'!F13 -> 9.25
A14: ='Traffic Count'!S116 -> 15:00:00 | B14: - | C14: 16:00:00 | D14: ='HCS+ for N-S Mainline'!J14 -> 23 | E14: ='HCS+ for N-S Mainline'!K14 -> 694 | F14: ='HCS+ for N-S Mainline'!L14 -> 24 | G14: ='HCS+ for N-S Mainline'!M14 -> 12 | H14: ='HCS+ for N-S Mainline'!N14 -> 1080 | I14: ='HCS+ for N-S Mainline'!O14 -> 22 | J14: ='HCS+ for N-S Mainline'!G14 -> 25 | K14: ='HCS+ for N-S Mainline'!H14 -> 0 | L14: ='HCS+ for N-S Mainline'!I14 -> 1.2 | M14: ='HCS+ for N-S Mainline'!D14 -> 17 | N14: ='HCS+ for N-S Mainline'!E14 -> 1 | O14: ='HCS+ for N-S Mainline'!F14 -> 10.85
A15: ='Traffic Count'!S128 -> 16:00:00 | B15: - | C15: 17:00:00 | D15: ='HCS+ for N-S Mainline'!J15 -> 31 | E15: ='HCS+ for N-S Mainline'!K15 -> 636 | F15: ='HCS+ for N-S Mainline'!L15 -> 28 | G15: ='HCS+ for N-S Mainline'!M15 -> 8 | H15: ='HCS+ for N-S Mainline'!N15 -> 977 | I15: ='HCS+ for N-S Mainline'!O15 -> 17 | J15: ='HCS+ for N-S Mainline'!G15 -> 17 | K15: ='HCS+ for N-S Mainline'!H15 -> 3 | L15: ='HCS+ for N-S Mainline'!I15 -> 2.4 | M15: ='HCS+ for N-S Mainline'!D15 -> 18 | N15: ='HCS+ for N-S Mainline'!E15 -> 1 | O15: ='HCS+ for N-S Mainline'!F15 -> 12
A16: ='Traffic Count'!S140 -> 17:00:00 | B16: - | C16: 18:00:00 | D16: ='HCS+ for N-S Mainline'!J16 -> 22 | E16: ='HCS+ for N-S Mainline'!K16 -> 716 | F16: ='HCS+ for N-S Mainline'!L16 -> 22 | G16: ='HCS+ for N-S Mainline'!M16 -> 11 | H16: ='HCS+ for N-S Mainline'!N16 -> 803 | I16: ='HCS+ for N-S Mainline'!O16 -> 14 | J16: ='HCS+ for N-S Mainline'!G16 -> 21 | K16: ='HCS+ for N-S Mainline'!H16 -> 0 | L16: ='HCS+ for N-S Mainline'!I16 -> 2.4 | M16: ='HCS+ for N-S Mainline'!D16 -> 15 | N16: ='HCS+ for N-S Mainline'!E16 -> 0 | O16: ='HCS+ for N-S Mainline'!F16 -> 6.3

Sheet Main Line Reduction Table
A1: 0 | B1: 399 | C1: 0
A2: 400 | B2: 499 | C2: 0.05
A3: 500 | B3: 599 | C3: 0.1
A4: 600 | B4: 699 | C4: 0.15
A5: 700 | B5: 799 | C5: 0.2
A6: 800 | B6: 899 | C6: 0.25
A7: 900 | B7: 999 | C7: 0.3
A8: 1000 | B8: 1099 | C8: 0.35
A9: 1100 | B9: 1199 | C9: 0.4
A10: 1200 | B10: 1299 | C10: 0.45
A11: 1300 | B11: 1399 | C11: 0.5
A12: 1400 | B12: 1499 | C12: 0.55
A13: 1500 | B13: 1599 | C13: 0.6
A14: 1600 | B14: 1699 | C14: 0.65
A15: 1700 | B15: 1799 | C15: 0.7
A16: 1800 | B16: 1899 | C16: 0.75
A17: 1900 | B17: 1999 | C17: 0.8
A18: 2000 | B18: 2099 | C18: 0.85
A19: 2100 | B19: 2199 | C19: 0.9
A20: 2200 | B20: 2299 | C20: 0.95
A21: 2300 | B21: 2399 | C21: 1
A27: North/South
A28: East/West

Sheet Configurations
